Cogmind - Beta 15 @@@ ROGUE MODE // 2025.08.15 @ 20:10:02 Player: Dwarfinator Result: Escaped! Performance ------------- Evolutions (9) 4500 Regions Visited (30) 6000 Robots Destroyed (493) 2465 Value Destroyed (25176) 25176 Prototype IDs (388) 7760 Alien Tech Used (10) 2000 Bonus (36374) 36374 TOTAL SCORE: 84275 Bonus ------- Triggered High Security 500 High Alert Combat Kills 3971 Follower Combat Kills 2367 Forged Quantum Companion 2000 Registered with UFD 300 Met Optimus in HQ 500 Met Imprinter 300 Destroyed Z-Imprinter 1000 Triggered Deep Caves Wall 500 Exposed GOLEM Chamber 500 Met Zhirov 300 Met Warlord at Base 500 MAIN.C Attacked Warlord 500 Warlord Defense Kills 4098 Scanned by Researcher 500 Pursued by Intercept 500 Acquired SGEMP 2000 Delivered SGEMP 2000 Met MAIN.C 5000 Destroyed MAIN.C Shell 5000 Zhirov Destroyed MAIN.C 3000 Win 3000 Friendly Fire -1962 Cogmind --------- Core Integrity 1455/1600 Matter 373/425 Energy 791/840 System Corruption 0% Temperature Cool (12) Movement Hovering (27) Location To Epsilon Eridani Parts ------- > --- POWER (3) -------- Zero-point Reactor Vortex Chain Reactor > --- PROPULSION (7) --- Combat Antigrav System Combat Antigrav System Combat Antigrav System Combat Antigrav System Combat Antigrav System Combat Antigrav System Cooled Linear Gravjet > --- UTILITY (13) ----- Large Storage Unit Assembled Suspension Frame Zionite Metafield Generator Assembled Combat Suite Experimental Melee Analysis Suite Weapon Mount Femtoactuators Advanced Force Booster Advanced Reaction Control System Experimental Phase Shifter Improved Utility Shielding Assembled Alloy Armor AEGIS Remote Shield > --- WEAPON (3) ------- Superquantum Companion Sigix Broadsword > --- INVENTORY (15) --- Light Antimatter Reactor Particle Reactor Combat Antigrav System Experimental Coolant Injector Small Battery (100) Experimental Transmission Jammer Improved Utility Shielding Graphene Brace Core Regenerator Firepult Cooled Nova Cannon Multitool Peak State ------------ > --- POWER ------------ Zero-point Reactor Vortex Chain Reactor > --- PROPULSION ------- Combat Antigrav System Combat Antigrav System Combat Antigrav System Combat Antigrav System Combat Antigrav System Combat Antigrav System Cooled Linear Gravjet > --- UTILITY ---------- Large Storage Unit Assembled Suspension Frame Zionite Metafield Generator Assembled Combat Suite Experimental Melee Analysis Suite Weapon Mount Femtoactuators Advanced Reaction Control System Experimental Phase Shifter Improved Utility Shielding Assembled Alloy Armor AEGIS Remote Shield Experimental System Purifier > --- WEAPON ----------- Superquantum Companion Sigix Broadsword > --- INVENTORY -------- Light Antimatter Reactor Particle Reactor Combat Antigrav System Experimental Coolant Injector Small Battery Advanced Force Booster Experimental Transmission Jammer Improved Utility Shielding Graphene Brace Core Regenerator Firepult Cooled Nova Cannon Multitool [Rating: 240] Favorites ----------- Power Antimatter Reactor Engine Light Angular Momentum Engine Power Core Neutrino Core Reactor Antimatter Reactor Propulsion Combat Antigrav System Treads Advanced Heavy Siege Treads Leg Overtuned Flexi-carbon Leg Wheel Compact Wheel Hover Unit Combat Antigrav System Utility Advanced Melee Analysis Suite Device Improved Force Field Storage Humpback Processor Advanced Melee Analysis Suite Hackware Improved Hacking Suite Protection Enhanced Scrap Shield Artifact Phase Redirector Weapon Companion Sword Energy Gun Vortex Rifle Energy Cannon Enhanced Nova Cannon Ballistic Gun Assault Rifle Ballistic Cannon Light Cannon Launcher Rocket Array Special Weapon Improved Remote Datajack Impact Weapon Great Maul Slashing Weapon Companion Sword Special Melee Weapon Advanced Datajack Build | -11 -10 -10 -8 -6 -6 -6 -6 -6 -6 -6 -5 -5 -5 -5 -5 -4 -4 -4 -4 -4 -4 -4 -3 -3 -3 -3 -2 -2 -1 -1 ------- Run | Yrd Mat Sub Scr Fac Was Fac Low Low Zio Dee Pro Fac Upp Upp Zhi Pro Fac Was Fac Upp Upp War Pro Res Qua Sec Res Tes Acc Com Slots Evolved 18 | . . . . 8 . . . . . . . 2 . . . . 2 . . . . . . 2 . . 2 . 2 . Power 1 | . . . . 1 . . . . . . . . . . . . . . . . . . . . . . . . . . Propulsion 5 | . . . . . . . . . . . . . . . . . 2 . . . . . . 2 . . 1 . . . Utility 11 | . . . . 7 . . . . . . . 2 . . . . . . . . . . . . . . . . 2 . Weapon 1 | . . . . . . . . . . . . . . . . . . . . . . . . . . . 1 . . . Parts Attached 335 | 8 8 13 9 25 18 29 3 1 3 27 4 24 3 . 5 6 30 3 21 1 . 8 2 28 16 9 13 9 3 6 Power 47 | 1 . 2 . 6 3 2 . . . 3 1 7 1 . . 2 7 . 4 . . 1 1 . 1 1 . 1 1 2 Engine 13 | 1 . 2 . 5 . . . . . 1 . 3 1 . . . . . . . . . . . . . . . . . Core 9 | . . . . 1 1 . . . . 1 1 3 . . . 1 1 . . . . . . . . . . . . . Reactor 25 | . . . . . 2 2 . . . 1 . 1 . . . 1 6 . 4 . . 1 1 . 1 1 . 1 1 2 Propulsion 40 | 3 . 3 3 . 1 3 . 1 . 3 2 . . . . . 6 1 . . . . . 9 1 . 2 1 . 1 Treads 9 | 2 . 2 . . . . . . . . . . . . . . 5 . . . . . . . . . . . . . Leg 7 | . . . 1 . 1 . . . . 1 . . . . . . . 1 . . . . . 1 . . 1 . . 1 Wheel 11 | 1 . 1 2 . . 3 . 1 . . 2 . . . . . . . . . . . . 1 . . . . . . Hover 13 | . . . . . . . . . . 2 . . . . . . 1 . . . . . . 7 1 . 1 1 . . Flight . | . . . . . . . . . . . . . . . . . . . . . . . . . . . . . . . Utility 186 | 2 4 1 3 17 6 19 3 . 1 15 1 13 2 . 4 4 12 1 16 1 . 6 1 17 11 6 10 5 2 3 Device 90 | 1 . 1 2 5 4 9 . . 1 6 1 6 1 . 2 3 4 1 9 . . 2 1 9 7 4 5 3 . 3 Storage 14 | 1 4 . 1 . . 1 . . . 2 . . . . . . 2 . 1 . . . . 1 . . . . 1 . Processor 17 | . . . . 1 1 2 1 . . . . 6 . . 1 . . . . . . 2 . 2 . . . . 1 . Hackware 29 | . . . . 4 . 3 . . . . . . . . . . 3 . 5 . . . . 5 2 1 4 2 . . Protection 35 | . . . . 7 1 4 2 . . 7 . 1 1 . 1 1 3 . 1 1 . 2 . . 1 1 1 . . . Artifact 1 | . . . . . . . . . . . . . . . . . . . . . . . . . 1 . . . . . Weapon 62 | 2 4 7 3 2 8 5 . . 2 6 . 4 . . 1 . 5 1 1 . . 1 . 2 3 2 1 2 . . Energy Gun 7 | . 1 . . . . 1 . . . 3 . . . . . . . . . . . 1 . . . . . 1 . . Energy Cannon 14 | . . 2 . 1 1 3 . . . 1 . . . . 1 . 1 1 . . . . . 1 . . 1 1 . . Ballistic Gun 6 | 2 1 1 2 . . . . . . . . . . . . . . . . . . . . . . . . . . . Ballistic Cannon 5 | . 1 2 . . . . . . . . . . . . . . 2 . . . . . . . . . . . . . Launcher 11 | . . 2 . 1 3 . . . 2 1 . 1 . . . . . . 1 . . . . . . . . . . . Special Weapon 10 | . 1 . . . 3 1 . . . . . 3 . . . . . . . . . . . 1 1 . . . . . Impact Weapon 1 | . . . . . . . . . . 1 . . . . . . . . . . . . . . . . . . . . Slashing Weapon 6 | . . . 1 . 1 . . . . . . . . . . . 1 . . . . . . . 2 1 . . . . Piercing Weapon . | . . . . . . . . . . . . . . . . . . . . . . . . . . . . . . . Special Melee Weapon 2 | . . . . . . . . . . . . . . . . . 1 . . . . . . . . 1 . . . . Unidentified Prototypes 54 | . . . 1 . 4 2 2 . 2 14 . . . . 4 . 1 . 1 . . 5 . 3 4 6 . 4 1 . Corrupted Parts 3 | . . . . . . . . . . . . . . . . 3 . . . . . . . . . . . . . . System Corruption 26 | . . . . . . . . . . . . . . . . 26 . . . . . . . . . . . . . . Parts Lost 41 | . 1 7 . 7 . 5 . . . . 1 10 . . . 5 2 . . . . . . 2 . . 1 . . . Power 11 | . . 3 . 1 . 1 . . . . . 4 . . . 1 1 . . . . . . . . . . . . . Propulsion 1 | . . . . . . 1 . . . . . . . . . . . . . . . . . . . . . . . . Utility 22 | . . 1 . 6 . 3 . . . . 1 5 . . . 3 1 . . . . . . 1 . . 1 . . . Weapon 7 | . 1 3 . . . . . . . . . 1 . . . 1 . . . . . . . 1 . . . . . . Highest Loss Streak 5 | . 1 5 . 2 . 2 . . . . 1 5 . . . 5 1 . . . . . . 2 . . 1 . . . To Critical Strikes . | . . . . . . . . . . . . . . . . . . . . . . . . . . . . . . . Average Backups 21 | 5 12 18 19 26 23 28 27 30 30 21 30 27 17 17 16 15 18 19 19 20 20 21 23 13 12 11 12 12 12 12 Power . | . . . . . 1 1 1 1 1 1 1 . . . . . . . . . . . . . . . . . . 1 Propulsion 2 | 4 3 4 2 1 . 1 3 4 4 2 2 . . . . . . . 4 6 6 6 8 2 1 1 . 1 1 1 Utility 11 | . 2 4 7 15 15 16 14 16 15 13 21 20 11 11 11 9 11 14 10 10 10 10 12 7 6 4 5 6 6 5 Weapon 4 | . 6 9 6 4 5 5 6 7 7 4 4 4 4 4 4 2 2 2 2 2 2 1 1 1 2 2 2 1 2 1 Tool/Special . | . . . . . . . . . . . . . . . . . . . . . . . . . . . . . . . Unused Backups 74 | 4 5 3 8 1 3 7 1 . . 6 . 10 . . . . 3 4 2 . . 1 . 3 2 3 2 1 . 5 Power 2 | . . . . . 2 . . . . . . . . . . . . . . . . . . . . . . . . . Propulsion 13 | 3 2 . 2 . . 1 . . . 1 . 2 . . . . . . 1 . . . . 1 . . . . . . Utility 46 | 1 2 1 2 1 1 5 1 . . 4 . 7 . . . . 3 4 1 . . 1 . 2 1 3 2 1 . 3 Weapon 10 | . 1 2 4 . . 1 . . . 1 . 1 . . . . . . . . . . . . . . . . . . Tool/Special 3 | . . . . . . . . . . . . . . . . . . . . . . . . . 1 . . . . 2 Average Slot Usage (%) 79 | . 100 87 70 59 70 66 80 81 80 80 80 75 82 83 79 74 84 79 79 79 80 77 74 93 92 94 90 89 91 91 Engine 1 | . 14 2 . 4 8 . . . . . . 4 11 11 11 5 . . . . . . . . . . . . . . Core 1 | . . . . 3 . . . . . 5 6 4 4 5 5 5 3 . . . . . . . . . . . . . Reactor 9 | . . . . . 4 12 14 18 18 12 12 6 . . . 3 11 15 15 15 15 12 10 9 9 9 8 8 7 7 Treads 2 | . 28 17 4 . . . . . . . . . . . . . 6 4 5 5 5 5 5 . . . . . . . Wheel 7 | . . 10 15 6 5 8 12 12 12 11 12 5 5 5 5 5 5 5 5 5 5 5 5 . . . . . . . Hover 3 | . . . . . . . . . . . . . . . . . . . . . . . . 26 27 27 28 29 26 26 Device 18 | . 8 12 7 11 18 14 15 14 16 10 16 23 27 27 23 22 21 20 22 29 30 27 29 29 28 29 26 31 34 33 Storage 7 | . 19 15 13 6 9 6 6 6 6 6 6 5 5 5 5 5 5 5 5 5 5 5 5 4 4 4 4 4 3 3 Processor 4 | . . . . 5 . 4 8 12 6 6 6 4 11 11 13 16 10 10 6 5 5 5 5 4 . . . . 2 3 Hackware 2 | . . . . 5 6 1 . . . . . . . . . . 7 5 5 . . . . 8 10 10 9 . . . Protection 7 | . . . . 7 4 6 13 9 12 18 12 10 4 4 5 . 3 5 5 5 5 6 5 . 3 3 3 6 7 7 Energy Cannon 2 | . . 12 13 . . . . . . . . 1 5 4 . 2 . 4 2 5 5 2 . . 1 . . . . . Slashing Weapon 5 | . . . 6 6 6 6 6 6 6 6 6 5 5 5 5 4 4 4 4 5 5 4 4 4 4 3 7 7 6 6 Peak Build Rating 240 | 7 8 12 30 71 82 90 79 79 91 108 98 133 101 107 107 115 144 147 149 148 147 159 158 177 177 182 215 225 238 240 Average Rating 99 | 4 7 9 17 61 66 77 73 77 83 86 90 108 99 99 102 101 131 143 143 147 145 148 151 169 167 171 205 217 237 237 On Entrance 109 | . 7 8 10 30 66 78 50 76 76 83 90 91 102 99 99 106 111 137 145 148 145 145 156 150 166 164 176 212 221 237 Naked Turns . | . . . . . . . . . . . . . . . . . . . . . . . . . . . . . . . Heaviest Build 433 | 12 52 53 204 258 280 433 275 272 301 295 296 347 119 124 115 118 184 190 185 185 186 202 199 176 98 107 112 125 128 134 Greatest Support 137 | 40 40 40 40 20 20 32 32 32 32 60 32 40 20 20 20 20 20 20 20 20 20 20 20 96 96 96 112 137 130 137 Greatest Overweight (x) 89 | 3 1 3 12 12 14 21 8 8 9 89 9 17 5 6 5 5 9 9 9 9 9 10 9 8 1 1 1 1 1 1 Average Overweight (x) 4 | 2 . 1 3 11 12 12 7 8 8 4 8 7 4 5 5 4 6 8 8 8 9 8 8 . . . . . . . Largest Inventory Capacity 35 | 8 20 20 35 35 35 35 35 35 35 35 35 35 20 20 20 20 25 25 25 25 25 25 25 25 15 15 15 15 15 15 Average Capacity 25 | 7 15 20 23 35 35 35 35 35 35 23 35 33 20 20 20 20 22 25 25 25 25 25 25 15 15 15 15 15 15 15 Most Carried 35 | 8 15 20 30 35 35 35 35 35 35 35 35 35 20 20 20 20 25 25 25 25 25 25 25 25 15 15 15 15 15 15 Average Carried 24 | 5 12 19 21 31 28 34 32 35 34 22 34 31 20 20 19 18 21 24 24 24 24 24 24 15 14 14 14 14 13 13 Final Capacity 35 | 8 20 20 35 35 35 35 35 35 35 35 35 20 20 20 20 20 25 25 25 25 25 25 25 15 15 15 15 15 15 15 Final Carried 35 | 5 15 20 30 30 35 33 35 35 35 35 35 20 20 20 20 18 21 25 25 25 25 25 25 15 15 15 15 15 15 13 Class Distribution -------------------- 38% | Hauler-Mutant 27% | Mutant 17% | Scavenger-Mutant 8% | Hacker-Sprinter 3% | Hacker-Mutant Dominant Class ---------------- Mutant | -10/Materials Scavenger-Mutant | -10/Subcaves Mutant | -8/Scraptown Hauler-Mutant | -6/Factory Hauler-Mutant | -6/Waste Hauler-Mutant | -6/Factory Hauler-Mutant | -6/Lower Caves Hauler-Mutant | -6/Lower Caves Hauler-Mutant | -6/Zion Scavenger-Mutant | -6/Deep Caves Hauler-Mutant | -5/Proximity Caves Hauler-Mutant | -5/Factory Scavenger-Mutant | -5/Upper Caves Scavenger-Mutant | -5/Upper Caves Scavenger-Mutant | -5/Zhirov Scavenger-Mutant | -4/Proximity Caves Hacker-Mutant | -4/Factory Mutant | -4/Waste Mutant | -4/Factory Mutant | -4/Upper Caves Mutant | -4/Upper Caves Mutant | -4/Warlord Mutant | -3/Proximity Caves Hacker-Sprinter | -3/Research Hacker-Sprinter | -3/Quarantine Hacker-Sprinter | -3/Section 7 Hacker-Sprinter | -2/Research Machinist-Sprinter | -2/Testing Machinist-Sprinter | -1/Access Machinist-Gladiator | -1/Command Resources | -11 -10 -10 -8 -6 -6 -6 -6 -6 -6 -6 -5 -5 -5 -5 -5 -4 -4 -4 -4 -4 -4 -4 -3 -3 -3 -3 -2 -2 -1 -1 ----------- Run | Yrd Mat Sub Scr Fac Was Fac Low Low Zio Dee Pro Fac Upp Upp Zhi Pro Fac Was Fac Upp Upp War Pro Res Qua Sec Res Tes Acc Com Matter Collected 14789 | 279 384 384 214 527 398 884 668 99 350 1223 295 2653 109 112 239 246 1178 211 750 143 98 187 89 689 504 1020 103 365 273 115 Remotely 1803 | . . . . . . 125 . . . . . 1678 . . . . . . . . . . . . . . . . . . Salvage Created 29648 | 129 248 214 . 1671 126 1232 655 29 . 1074 854 3330 56 137 299 1206 2024 1537 3102 475 140 2140 161 2206 701 2486 520 1091 590 1215 Parts 1189 | 12 18 9 . 60 6 79 9 . . 25 28 138 . 3 10 47 89 28 133 21 9 30 16 118 42 114 17 73 34 21 Haulers Intercepted 12 | . 2 . . . . . . . . . . . . . . . . . 4 . . . . 5 . . . . 1 . Recyclers Shooed 13 | . 1 . . 4 . 4 . . . . . 4 . . . . . . . . . . . . . . . . . . Parts Field Recycled . | . . . . . . . . . . . . . . . . . . . . . . . . . . . . . . . Retrieved Matter . | . . . . . . . . . . . . . . . . . . . . . . . . . . . . . . . Parts Self-Destructed 176 | . . 11 . . . . 43 2 3 . 26 . 11 . 8 34 . . . 20 7 . 11 . . . . . . . Prevented 9 | . . . . . . . . . . . . . . 3 . 6 . . . . . . . . . . . . . . Kills | -11 -10 -10 -8 -6 -6 -6 -6 -6 -6 -6 -5 -5 -5 -5 -5 -4 -4 -4 -4 -4 -4 -4 -3 -3 -3 -3 -2 -2 -1 -1 ------- Run | Yrd Mat Sub Scr Fac Was Fac Low Low Zio Dee Pro Fac Upp Upp Zhi Pro Fac Was Fac Upp Upp War Pro Res Qua Sec Res Tes Acc Com Combat Hostiles Destroyed 405 | . 6 7 . 21 . 21 . . . 45 11 80 . 2 . 23 24 5 43 6 2 26 5 14 5 33 4 13 6 3 Melee 162 | . . . . 19 . 12 . . . 1 5 12 . . . 6 13 . 27 5 2 . 1 12 5 23 . 12 6 1 Guns 10 | . 6 1 . . . . . . . . . . . . . . . . . . . 3 . . . . . . . . Cannons 33 | . . 5 . . . . . . . . . 5 . . . 2 9 1 6 1 . . 2 1 . 1 . . . . AOE 125 | . . 1 . 2 . 8 . . . 41 5 51 . 1 . 8 . . 1 . . 3 1 . . 2 1 . . . Classes Destroyed 36 | 2 2 4 . 6 1 2 2 . . 4 2 5 . . . . . 2 1 . . 3 . . . . . . . . Worker 16 | . . . . 1 . 4 . . . . . 7 . . . . . . . . . . . 2 . . . . 2 . Builder 20 | . . . . . . . . . . . . 3 . . . . 5 . . . . . . 3 1 3 3 2 . . Tunneler 9 | 4 1 . . . . . . . . . . 1 . . . . 1 . 1 . . . . 1 . . . . . . Hauler 12 | . 2 . . . . . . . . . . . . . . . . . 4 . . . . 5 . . . . 1 . Recycler 18 | 1 . . . 4 . 2 . . . . 2 1 . . . . 2 . . . . . . 3 2 1 . . . . Mechanic 8 | . . . . 1 . . . . . . . 4 . . . . . . . . . 1 . 1 1 . . . . . Operator 10 | . . . . 1 . . . . . . . . . . . . 1 . . . . . . 1 2 1 1 2 . 1 Drone 4 | . . . . . . . . . . . 2 . . . . . . . . . . . 2 . . . . . . . Turret 1 | . . 1 . . . . . . . . . . . . . . . . . . . . . . . . . . . . Watcher 18 | . . . . . . . . . . . 1 1 . . . . 1 . 2 . . . . 4 1 3 2 3 . . Swarmer 59 | . 6 1 . 3 . 7 . . . . . 7 . . . 7 1 . 8 2 . . 2 . 3 12 . . . . Cutter 3 | . . . . . . . . . . . . 3 . . . . . . . . . . . . . . . . . . Saboteur 4 | . . . . . . . . . . . . 4 . . . . . . . . . . . . . . . . . . Grunt 111 | . . 1 . 12 . 2 . . . . 4 33 . 2 . 11 11 . 14 . . 14 . . . 3 3 . 1 . Brawler 4 | . . . . . . . . . . . . 2 . . . . . . . . . 1 . . . . 1 . . . Duelist 6 | . . . . 1 . . . . . . 1 3 . . . . . . . . . 1 . . . . . . . . Protector 6 | . . . . . . . . . . . . 4 . . . . . . . . . 2 . . . . . . . . Researcher 2 | . . . . . . . 1 . . . . . . . . . . . . . . . . . . 1 . . . . Sentry 27 | . . 1 . 1 . 1 . . . . 4 1 . . . 2 2 . 4 1 1 . . 1 . 7 . . 1 . Specialist 4 | . . . . . . 3 . . . . . 1 . . . . . . . . . . . . . . . . . . Hunter 32 | . . . . 1 . 4 . . . . . 11 . . . 2 4 . 4 . . 2 . 2 . . . 2 . . Programmer 72 | . . . . 3 . 3 . . . . . 11 . . . 1 6 . 12 3 1 . 1 11 2 5 . 9 4 . Heavy 1 | . . . . . . 1 . . . . . . . . . . . . . . . . . . . . . . . . Behemoth 2 | . . . . . . . . . . . . . . . . . . . 1 . . . . . . 1 . . . . Compactor 5 | . . . . . . . . . . . . . . . . . . 5 . . . . . . . . . . . . S7 Guard 1 | . . . . . . . . . . . . . . . . . . . . . . . . . . 1 . . . . Tracker 2 | . . . . . . . . . . . . . . . . . . . . . . . . . . 2 . . . . Combat Programmer 4 | . . . . . . . . . . . . . . . . . . . . . . . . . . 2 . . . 2 Striker 5 | . . . . . . . . . . . . . . . . . . . . . . 3 . . . . . 2 . . Executioner 3 | . . . . . . . . . . . . . . . . . . . . . . 3 . . . . . . . . Subdweller 4 | . . 4 . . . . . . . . . . . . . . . . . . . . . . . . . . . . Scrapoid 1 | . . . . . . . . . . . . . . . . . . 1 . . . . . . . . . . . . Z-Light 6 | . . . . . . . . . . 6 . . . . . . . . . . . . . . . . . . . . Decomposer 4 | . . . . . . . 3 1 . . . . . . . . . . . . . . . . . . . . . . Packrat 2 | . . . . . . . 2 . . . . . . . . . . . . . . . . . . . . . . . Samaritan 1 | . . . . . . . 1 . . . . . . . . . . . . . . . . . . . . . . . Assembler 2 | . . . . . . . . . . 2 . . . . . . . . . . . . . . . . . . . . Assembled 35 | . . . . . . . . . . 35 . . . . . . . . . . . . . . . . . . . . Golem 4 | . . . . . . . . . . 4 . . . . . . . . . . . . . . . . . . . . Wasp 1 | . . . . . . . . . . . . . . . . . . 1 . . . . . . . . . . . . Savage 1 | . . . . . . . . . . . . . . . . . . . . . . 1 . . . . . . . . Martyr 4 | . . . . . 2 . . . . . . . . . . . . 2 . . . . . . . . . . . . Mutant 2 | . . . . . . . . . . . . . . . . . . . . . . 2 . . . . . . . . Best Kill Streak 37 | 2 3 3 . 6 . 4 . . . 37 5 22 . 2 . 16 8 2 8 2 1 16 18 6 4 9 7 10 4 2 Combat Bots Only 35 | . 3 3 . 4 . 4 . . . 35 4 21 . 2 . 16 8 2 8 2 1 15 17 5 4 8 4 8 2 2 Max Kills in Single Turn 23 | 1 1 1 . 2 1 3 1 1 . 23 3 5 . 1 . 4 2 1 2 2 1 4 2 1 1 2 4 1 1 1 Gunslinging . | . . . . . . . . . . . . . . . . . . . . . . . . . . . . . . . Exploded 23 | . . 1 . 2 . 3 . . . 23 3 3 . 1 . 4 . . 1 . . 1 1 . . 1 1 . . . Melee 2 | . . . . 1 . 1 . . . 1 1 1 . . . 1 1 . 1 2 1 . 1 1 1 2 . 1 1 1 Uniques/NPCs Destroyed 1 | . . . . . . . . . . . . . . . . . . . . . . . . . . . . . . 1 MAIN.C Shell (-1/Command) Combat | -11 -10 -10 -8 -6 -6 -6 -6 -6 -6 -6 -5 -5 -5 -5 -5 -4 -4 -4 -4 -4 -4 -4 -3 -3 -3 -3 -2 -2 -1 -1 -------- Run | Yrd Mat Sub Scr Fac Was Fac Low Low Zio Dee Pro Fac Upp Upp Zhi Pro Fac Was Fac Upp Upp War Pro Res Qua Sec Res Tes Acc Com Hostile Shots Fired 2395 | . 29 63 . 301 . 432 . . . 58 77 440 . 4 . 116 246 . 211 33 12 65 12 58 13 116 1 51 22 35 Missed 816 | . 6 9 . 71 . 121 . . . 17 22 148 . 1 . 49 103 . 74 13 4 32 5 21 7 55 . 25 15 18 Deflected 25 | . . . . . . . . . . . . . . . . 2 4 . 8 1 . . . 2 . 4 . 3 1 . Hits 1579 | . 23 54 . 230 . 311 . . . 41 55 292 . 3 . 67 143 . 137 20 8 33 7 37 6 61 1 26 7 17 Melee 13 | . . . . 5 . . . . . . 1 4 . . . . 3 . . . . . . . . . . . . . Projectile 1566 | . 23 54 . 225 . 311 . . . 41 54 288 . 3 . 67 140 . 137 20 8 33 7 37 6 61 1 26 7 17 AOE 8 | . . 2 . . . 4 . . . . . 1 . . . . . . 1 . . . . . . . . . . . Critical Strikes 75 | . 1 . . 12 . 13 1 . . . 3 15 . . . 3 5 . 8 1 . 3 . 1 . 1 . 4 2 2 Actively Blocked 4 | . . . . . . . . . . . . . . . . . . . . . . . . . . . . 1 1 2 Part Disruptions 5 | . . . . . . . . . . . . 1 . . . . . . . . . . . . . . . . 1 3 Actively Blocked 2 | . . . . . . . . . . . . . . . . . . . . . . . . . . . . . . 2 Damage Taken 20750 | . 249 1187 . 3916 24 3552 36 . . 713 518 3680 . 81 6 749 1493 . 1577 210 88 399 94 613 77 744 50 270 141 283 Core 2183 | . . 179 . 292 . 180 33 . . 126 49 468 . 20 6 126 188 . 120 50 . 29 6 152 8 95 . 7 13 36 Absorbed by Shields 8606 | . . . . . . 1008 16 . . 728 538 1665 . . . 418 1004 . 1152 144 93 328 93 238 24 492 51 265 91 258 Redirected to Shielding 263 | . . . . . . . . . . . . . . . . 4 . . . . . 12 . . 28 103 29 34 12 41 Ignored by Resistances 2160 | . . . . . . 628 . . . 81 211 811 . . . . 175 . . . . . . . . . . 106 44 104 Regen/Repaired (Parts) 3768 | . . . . 644 376 36 . . . . . 288 17 10 . 4 37 157 268 . 20 134 9 . . 734 135 143 83 673 Core Remaining (%) 61 | 100 . . 28 . . . . . . . 20 . . . . 38 . . . . . . 65 . . 60 . 92 . 90 Volleys Fired 515 | 16 29 34 . 6 10 39 2 . 3 18 6 133 . 8 14 29 26 9 13 4 5 28 1 7 9 25 13 14 2 12 Largest 2 | 2 2 2 . 1 1 1 1 . 1 1 1 1 . 1 1 1 2 1 1 1 1 1 1 1 1 1 1 1 1 1 Hottest 250 | 40 100 140 . 90 90 110 90 . 110 75 75 110 . 110 30 250 250 250 250 120 120 250 250 113 113 250 250 120 50 250 Shots Fired 580 | 32 43 60 . 6 10 36 2 . 3 18 6 133 1 7 14 29 34 10 14 5 6 28 1 7 9 25 13 14 2 12 Gun 110 | 32 41 8 . . . 11 . . . . . . . . . . . . . . . 12 . 6 . . . . . . Cannon 324 | . 1 42 . 4 6 15 2 . 3 8 3 68 1 2 . 17 26 10 13 5 6 16 1 1 8 25 13 14 2 12 Launcher 105 | . . 10 . 2 . 10 . . . 8 3 61 . 5 . 6 . . . . . . . . . . . . . . Special 41 | . 1 . . . 4 . . . . 2 . 4 . . 14 6 8 . 1 . . . . . 1 . . . . . Kinetic 107 | 32 15 34 . 2 . 10 . . . . . . . . . . 13 1 . . . . . . . . . . . . Thermal 270 | . 28 16 . 4 6 15 2 . 3 . . 23 . 2 10 22 13 9 13 5 6 16 1 1 9 25 13 14 2 12 Explosive 52 | . . 10 . . . . . . . 8 3 28 . . . 3 . . . . . . . . . . . . . . Electromagnetic 111 | . . . . . . 11 . . . 8 3 80 1 5 . 3 . . . . . . . . . . . . . . Entropic 18 | . . . . . . . . . . . . . . . . . . . . . . 12 . 6 . . . . . . Robot Hit Streak 19 | 6 7 6 . 1 5 7 . . . 10 4 9 . 1 5 19 12 14 3 1 . 14 . . 3 6 8 1 . 8 Robot Miss Streak 8 | 2 3 2 . 3 . 4 . . . 8 1 4 . 1 1 4 2 1 6 3 . 3 . . . 2 2 . . 1 Penetration Max . | . . . . . . . . . . . . . . . . . . . . . . . . . . . . . . . Secondary Targets 2 | . 2 . . . . . . . . . . . . . . . . . . . . . . . . . . . . . Max Gunslinging Chain 1 | . 1 . . . . . . . . . . . . . . . . . . . . . . . . . . . . . Autonomous 34 | . . . . . . . . . . . . . . . . . 13 . 9 . . . 1 3 1 3 2 1 . 1 Shots Hit Robots 1002 | 19 27 25 . 104 6 79 19 1 . 34 45 108 1 2 18 31 75 11 104 15 6 23 2 67 17 63 7 42 21 30 Core Hits 1011 | 7 11 20 . 34 2 37 5 . . 139 25 319 1 5 8 45 45 12 61 8 3 78 4 28 9 48 14 17 8 18 Critical Kills 1 | . . . . . . . . . . 1 . . . . . . . . . . . . . . . . . . . . Critical Parts Destroyed 2 | . . . . . . . . . . 2 . . . . . . . . . . . . . . . . . . . . Critical Strikes 31 | . . . . 2 . 5 . . . 3 2 2 . . . . 5 . 4 . . . . 2 . . . 4 . 2 Blast 1 | . . . . . . . . . . . . . . . . . 1 . . . . . . . . . . . . . Corrupt 1 | . . . . . . 1 . . . . . . . . . . . . . . . . . . . . . . . . Smash 3 | . . . . . . . . . . 3 . . . . . . . . . . . . . . . . . . . . Melee Attacks 1143 | . . . . 133 2 98 21 3 1 26 44 84 2 1 7 19 83 3 131 21 9 2 13 125 35 125 21 61 28 45 Impact 7 | . . . . . . . . . . 7 . . . . . . . . . . . . . . . . . . . . Slashing 1136 | . . . . 133 2 98 21 3 1 19 44 84 2 1 7 19 83 3 131 21 9 2 13 125 35 125 21 61 28 45 Piercing . | . . . . . . . . . . . . . . . . . . . . . . . . . . . . . . . Sneak Attacks 122 | . . . . 14 2 19 8 1 . . 2 6 . . . . 11 3 9 . . . . 23 5 8 . 4 7 . Combat Hostiles 32 | . . . . 2 . 4 . . . . . 1 . . . . 2 . 3 . . . . 6 1 6 . 3 4 . Follow-up Attacks 24 | . . . . 2 . 4 . . . 1 2 3 . . 1 . 4 . . 1 . . . . . 3 . 3 . . Damage Inflicted 81061 | 200 304 651 . 4895 178 4527 1504 85 . 4845 2411 14121 75 234 857 2206 5565 1069 7726 1037 298 3170 187 6154 1711 6230 804 3682 2432 3903 Guns 1110 | 200 295 98 . . . 166 . . . . . . . . . . . . . . . 351 . . . . . . . . Cannons 6687 | . . 295 . . . . . . . 161 100 959 . . . 380 1590 289 1038 45 . 433 112 240 77 493 223 117 . 135 Explosions 22724 | . . 258 . 192 . 814 . . . 3295 576 11074 . 234 . 1068 178 437 615 . . 2386 16 . . 742 498 . 54 287 Melee 50399 | . . . . 4703 178 3545 1504 85 . 1389 1735 2066 75 . 789 725 3797 343 6073 992 298 . 59 5914 1627 4995 83 3565 2378 3481 Ramming 11 | . 9 . . . . 2 . . . . . . . . . . . . . . . . . . . . . . . . Kinetic 1863 | 200 113 393 . 192 . 728 . . . . . . . . . . 237 . . . . . . . . . . . . . Thermal 8903 | . 182 . . . . . . . . . . 876 . . 68 859 410 726 925 45 . 2819 29 . 7 975 552 40 54 336 Explosive 12345 | . . 258 . . . 86 . . . 3295 576 7661 . . . 457 12 . . . . . . . . . . . . . Electromagnetic 4344 | . . . . . . 166 . . . 161 100 3518 . 234 . 165 . . . . . . . . . . . . . . Impact 402 | . . . . . . . . . . 402 . . . . . . . . . . . . . . . . . . . . Slashing 49997 | . . . . 4703 178 3545 1504 85 . 987 1735 2066 75 . 789 725 3797 343 6073 992 298 . 59 5914 1627 4995 83 3565 2378 3481 Piercing . | . . . . . . . . . . . . . . . . . . . . . . . . . . . . . . . Entropic 351 | . . . . . . . . . . . . . . . . . . . . . . 351 . . . . . . . . Phasic 2845 | . . . . . . . . . . . . . . . . . 1109 . 728 . . . 99 240 77 260 169 77 . 86 Highest Corruption 26 | . 1 11 . 5 5 7 7 . . . . 8 8 8 8 26 5 5 17 18 19 19 1 5 5 1 . 2 . 2 Average Corruption 6 | . 1 5 . 4 5 5 7 . . . . 2 8 8 8 10 3 5 9 17 18 19 1 2 2 1 . 1 . 1 Corruption Purged 18 | . . . . . . 5 . . . . . . . . . . . . . . . . . 3 7 . . . . 3 Corruption Blocked 16 | . . . . . . . . . . . . 16 . . . . . . . . . . . . . . . . . . Effects 488 | . 5 27 . 17 25 70 36 . . . . 7 20 12 6 15 26 14 83 40 39 3 7 16 8 1 . 5 . 6 Message Errors 121 | . 1 6 . 4 6 12 8 . . . . 2 8 2 1 1 7 5 30 8 11 1 2 2 1 1 . 1 . 1 Matter Fused 112 | . . 7 . 3 3 22 8 . . . . 2 2 3 2 4 4 3 17 9 11 . 1 5 2 . . 2 . 2 Heat Flow Errors 57 | . . 2 . 3 3 6 6 . . . . . 3 1 1 3 3 2 5 4 8 1 . 3 1 . . 1 . 1 Energy Discharges 70 | . . 6 . . 7 10 4 . . . . 1 1 2 2 1 4 . 13 7 1 . 2 5 3 . . . . 1 Parts Rejected 3 | . . . . . . . . . . . . 1 . . . 1 . . 1 . . . . . . . . . . . Parts Fused 7 | . . . . . 1 2 1 . . . . . . . . . 1 1 1 . . . . . . . . . . . Data Loss (minor) 64 | . 1 1 . 6 4 12 6 . . . . 1 3 2 . 4 3 2 8 5 2 . 2 . . . . 1 . 1 Data Loss (major) 25 | . 1 1 . 1 1 3 1 . . . . . 1 1 . . 1 . 5 4 3 1 . 1 . . . . . . Misfires 12 | . 2 3 . . . . . . . . . . 1 . . . 2 1 1 1 1 . . . . . . . . . Alerts 10 | . . 1 . . . . 2 . . . . . 1 . . 1 . . 2 1 1 . . . 1 . . . . . Misdirections 2 | . . . . . . . . . . . . . . . . . . . . 1 1 . . . . . . . . . Weapon Failures 5 | . . . . . . 3 . . . . . . . 1 . . 1 . . . . . . . . . . . . . Overload Shots 2 | . . . . . . . . . . . . . . . . . . . . . . . . . . . . . . 2 Overflow Damage 7257 | . . 13 . 513 . 467 721 68 . 542 58 292 . . 35 17 357 . 757 234 . 14 . 964 493 427 . 754 486 45 Projectiles 301 | . . 6 . . . . . . . . . 37 . . . . 91 . 73 . . . . 27 . 26 . . . 41 Explosions 312 | . . 7 . 14 . 29 . . . 72 . 172 . . . 4 . . . . . 14 . . . . . . . . Melee 6644 | . . . . 499 . 438 721 68 . 470 58 83 . . 35 13 266 . 684 234 . . . 937 493 401 . 754 486 4 Knockbacks 8 | . . 5 . . . 1 . . . 2 . . . . . . . . . . . . . . . . . . . . Impact 3 | . . . . . . 1 . . . 2 . . . . . . . . . . . . . . . . . . . . Kinetic 5 | . . 5 . . . . . . . . . . . . . . . . . . . . . . . . . . . . Secondary . | . . . . . . . . . . . . . . . . . . . . . . . . . . . . . . . Self-Inflicted Damage 1148 | . . 95 . . . 176 . . . 24 11 653 . 23 . 18 . . 20 . . 45 23 . . 14 10 . 36 . Shots 62 | . . 4 . . . 7 . . . 2 1 30 . 1 . 1 . . 1 . . 6 4 . . 3 1 . 1 . Rammed 5 | . 4 . . . . 1 . . . . . . . . . . . . . . . . . . . . . . . . Targets Rammed 5 | . 4 . . . . 1 . . . . . . . . . . . . . . . . . . . . . . . . Kicked . | . . . . . . . . . . . . . . . . . . . . . . . . . . . . . . . Crushed . | . . . . . . . . . . . . . . . . . . . . . . . . . . . . . . . Highest Temperature 396 | . 20 137 . 197 212 324 260 . 187 224 174 246 162 230 136 238 356 292 396 204 250 245 117 203 149 200 186 38 . 206 Average Temperature 83 | . 11 21 . 39 95 101 89 . 91 83 81 93 75 91 75 83 103 120 118 83 87 111 72 63 107 36 120 38 . 96 Received Heat Transfer 3421 | . . 198 . 1440 . 501 . . . 133 117 436 . 9 . 162 130 . 144 9 16 74 . 4 . 12 . 8 8 20 Effects 20 | . . . . . . 9 1 . . . . 8 . . . . . . 1 . 1 . . . . . . . . . Shutdowns 1 | . . . . . . . . . . . . . . . . . . . 1 . . . . . . . . . . . Energy Bleed 2 | . . . . . . 1 1 . . . . . . . . . . . . . . . . . . . . . . . Interference 17 | . . . . . . 8 . . . . . 8 . . . . . . . . 1 . . . . . . . . . Siege Activations . | . . . . . . . . . . . . . . . . . . . . . . . . . . . . . . . Martial Activations . | . . . . . . . . . . . . . . . . . . . . . . . . . . . . . . . Shielding Activations . | . . . . . . . . . . . . . . . . . . . . . . . . . . . . . . . Robots Disrupted 12 | . . . . 1 . 2 1 . . . . 1 . . . . 3 . 1 . . . . 2 1 . . . . . Combat Hostiles 9 | . . . . 1 . 1 . . . . . 1 . . . . 3 . 1 . . . . 2 . . . . . . Robots Corrupted 23 | . . . . . . 1 . . . 3 1 15 . 1 . 2 . . . . . . . . . . . . . . Combat Hostiles 20 | . . . . . . 1 . . . 3 1 12 . 1 . 2 . . . . . . . . . . . . . . Parts Fried 23 | . . . . . . 1 . . . . . 21 . . . 1 . . . . . . . . . . . . . . Impact Corruptions 3 | . . . . . . . . . . 3 . . . . . . . . . . . . . . . . . . . . Robots Melted 52 | . . . . . . . . . . . . . . . . 5 1 5 6 . . 23 . . . 7 3 . . 2 Combat Hostiles 46 | . . . . . . . . . . . . . . . . 5 1 4 6 . . 20 . . . 6 2 . . 2 Parts Melted 177 | . 4 1 . . . . . . . . . . . . . 17 3 18 17 . . 77 . . . 24 12 . 1 3 Heat Transferred 35621 | . 500 . . . . . . . . . . 835 . . 250 3085 880 3227 4615 37 . 13403 160 . 25 4437 2720 37 50 1360 Parts Sabotaged . | . . . . . . . . . . . . . . . . . . . . . . . . . . . . . . . Parts Stolen . | . . . . . . . . . . . . . . . . . . . . . . . . . . . . . . . Parts Stripped 61 | . . . . . . . . . . . . . . . . . 8 . 10 . . . 5 14 . 5 7 12 . . Power Chain Reactions 8 | . . . . . . . . . . . . 8 . . . . . . . . . . . . . . . . . . Alert | -11 -10 -10 -8 -6 -6 -6 -6 -6 -6 -6 -5 -5 -5 -5 -5 -4 -4 -4 -4 -4 -4 -4 -3 -3 -3 -3 -2 -2 -1 -1 ------- Run | Yrd Mat Sub Scr Fac Was Fac Low Low Zio Dee Pro Fac Upp Upp Zhi Pro Fac Was Fac Upp Upp War Pro Res Qua Sec Res Tes Acc Com Maximum Alert Level 5 | . . . . 1 . 2 . . . . . 5 . . . . 2 . 3 . . . . 1 1 2 2 2 2 1 Low Security (%) 50 | 100 100 . . 97 100 39 . . . . . 41 . . . . 60 100 7 . . . . 53 12 21 . 51 . 72 Level 1 33 | . . . . 2 . 22 . . . . . 11 . . . . 38 . 61 . . . . 46 87 72 88 47 60 27 Level 2 9 | . . . . . . 38 . . . . . 10 . . . . . . 16 . . . . . . 6 11 1 39 . Level 3 3 | . . . . . . . . . . . . 11 . . . . . . 15 . . . . . . . . . . . Level 4 . | . . . . . . . . . . . . 3 . . . . . . . . . . . . . . . . . . Level 5 . | . . . . . . . . . . . . . . . . . . . . . . . . . . . . . . . High Security 2 | . . . . . . . . . . . . 20 . . . . . . . . . . . . . . . . . . Max Security . | . . . . . . . . . . . . . . . . . . . . . . . . . . . . . . . Peak Influence 2832 | 5 64 . . 264 90 581 . . . . . 2832 . . . . 441 154 1099 . . . . 357 346 482 414 402 552 379 Initial 352 | . . . . . 90 . . . . . . 56 . . . . 118 154 . . . . . . 195 189 270 173 236 352 Average 271 | . 7 . . 54 8 299 . . . . . 763 . . . . 159 37 419 . . . . 202 240 261 351 222 368 355 Influence Increases 15031 | 25 197 110 . 685 55 1411 35 33 . . 215 3592 80 70 15 490 1386 2 1925 145 55 495 80 845 446 1315 279 509 426 110 Destroy 0b10 Robot/C 7920 | . 120 80 . 420 . 720 . 20 . . 180 1780 . 40 . 460 700 . 1120 120 40 480 60 280 100 680 80 260 120 60 Destroy 0b10 Robot/NC 700 | 25 15 . . 35 . 30 20 . . . 25 120 5 . 15 . 75 . 40 5 . 15 10 100 35 40 30 35 20 5 Destroy Leader 1434 | . 24 . . 90 . 170 . 10 . . 10 294 . . . 30 154 . 232 20 . . 10 88 22 196 14 36 34 . Allied During Kill 764 | . . . . . . 122 . 3 . . . 130 . . . . 130 . 319 . . . . . . . . . 60 . Successful Hack 424 | . 37 . . 16 . 36 . . . . . . . . . . 10 . 43 . . . . 73 39 98 68 4 . . Disable Machine 795 | . . . . 15 . 105 . . . . . 315 . . . . 105 . 30 . . . . 15 60 75 . 60 15 . Destroy Structure 1734 | . 1 . . 19 55 78 . . . . . 818 . . . . 212 2 66 . . . . 94 40 106 72 69 72 30 Partial Spotted 255 | . . . . 30 . . . . . . . . . . . . . . . . . . . 75 15 60 . 30 30 15 Lose Combat Pursuer 1005 | . . 30 . 60 . 150 15 . . . . 135 75 30 . . . . 75 . 15 . . 120 135 60 15 15 75 . Influence Decreases 14669 | 25 197 110 . 427 313 840 606 33 . . 124 851 1303 476 1218 302 1133 443 836 772 463 96 533 496 458 1170 452 424 268 300 Entered New Map 5338 | . . . . . 168 . 212 . . . . 35 1049 306 1203 . 70 287 . 404 89 54 453 . 154 148 212 136 158 200 Time Decay 7320 | 25 187 72 . 357 105 580 394 33 . . 114 556 254 170 15 262 550 156 576 368 374 42 80 476 294 562 230 278 110 100 Lost Part 361 | . 10 38 . 70 . 50 . . . . 10 100 . . . 40 13 . . . . . . 20 . . 10 . . . Lost Ally 900 | . . . . . 40 210 . . . . . 160 . . . . 200 . 260 . . . . . 10 10 . 10 . . Purge Threat 750 | . . . . . . . . . . . . . . . . . 300 . . . . . . . . 450 . . . . Squads Dispatched 117 | . . . . 6 . 20 . . . . . 31 . . . 1 14 . 18 . . . . 6 3 8 6 3 1 . Investigation 31 | . . . . 2 . 5 . . . . . 5 . . . 1 6 . 7 . . . . 1 . . 4 . . . Extermination 36 | . . . . 3 . 5 . . . . . 2 . . . . 4 . 6 . . . . 4 3 4 2 3 . . Reinforcement 18 | . . . . 1 . 4 . . . . . 5 . . . . 1 . 4 . . . . 1 . 1 . . 1 . Assault 16 | . . . . . . . . . . . . 15 . . . . . . 1 . . . . . . . . . . . Garrison 13 | . . . . . . 6 . . . . . 4 . . . . 3 . . . . . . . . . . . . . Intercept 3 | . . . . . . . . . . . . . . . . . . . . . . . . . . 3 . . . . Searches Triggered . | . . . . . . . . . . . . . . . . . . . . . . . . . . . . . . . Construction Impeded 6 | . . . . . . . . . . . . 3 . . . . 1 . 2 . . . . . . . . . . . Haulers Reinforced 4 | . . . . . . 1 . . . . . . . . . . . . 2 . . . . . . . . . 1 . Active Scanning Responses . | . . . . . . . . . . . . . . . . . . . . . . . . . . . . . . . Cargo Convoy Interrupts 2 | . . . . . . 1 . . . . . 1 . . . . . . . . . . . . . . . . . . Stealth | -11 -10 -10 -8 -6 -6 -6 -6 -6 -6 -6 -5 -5 -5 -5 -5 -4 -4 -4 -4 -4 -4 -4 -3 -3 -3 -3 -2 -2 -1 -1 --------- Run | Yrd Mat Sub Scr Fac Was Fac Low Low Zio Dee Pro Fac Upp Upp Zhi Pro Fac Was Fac Upp Upp War Pro Res Qua Sec Res Tes Acc Com Distress Signals 26 | . 3 . . 3 . 2 . . . . 1 8 . . . . 2 . 2 . . . . . 2 2 . . 1 . Communications Jammed 92 | . . . . . . . . . . . . . . . . . 24 . 2 . . 4 . 4 1 46 1 3 7 . Distress Signals 92 | . . . . . . . . . . . . . . . . . 24 . 2 . . 4 . 4 1 46 1 3 7 . Times Spotted 677 | . 14 14 . 31 5 57 8 . . 46 20 119 5 3 . 23 60 4 58 6 3 52 2 29 16 49 9 20 17 7 Peak Tracking Total 37 | . 4 3 . 5 4 14 6 . . 37 5 11 5 4 . 9 17 2 6 2 1 17 1 5 4 7 2 3 5 4 Tactical Retreats 42 | . . 1 . 3 . 8 1 . . . . 6 3 1 . . . . 3 . 1 . . 3 5 3 1 1 2 . Traps | -11 -10 -10 -8 -6 -6 -6 -6 -6 -6 -6 -5 -5 -5 -5 -5 -4 -4 -4 -4 -4 -4 -4 -3 -3 -3 -3 -2 -2 -1 -1 ------- Run | Yrd Mat Sub Scr Fac Was Fac Low Low Zio Dee Pro Fac Upp Upp Zhi Pro Fac Was Fac Upp Upp War Pro Res Qua Sec Res Tes Acc Com Traps Triggered 10 | . 1 . . 1 . 2 . . . . . . . . . . 3 . . . . . . 2 1 . . . . . Indirectly . | . . . . . . . . . . . . . . . . . . . . . . . . . . . . . . . Trap Hack Attempts 4 | . . . . . . . . . . . . . . . . . 4 . . . . . . . . . . . . . Triggered . | . . . . . . . . . . . . . . . . . . . . . . . . . . . . . . . Disarmed . | . . . . . . . . . . . . . . . . . . . . . . . . . . . . . . . Reprogrammed 2 | . . . . . . . . . . . . . . . . . 2 . . . . . . . . . . . . . Reused 1 | . . . . . . . . . . 1 . . . . . . . . . . . . . . . . . . . . Traps Extracted . | . . . . . . . . . . . . . . . . . . . . . . . . . . . . . . . Installed 1 | . . . . . . . . . . 1 . . . . . . . . . . . . . . . . . . . . Triggered . | . . . . . . . . . . . . . . . . . . . . . . . . . . . . . . . Most Traps Carried 1 | . . . . . . . 1 1 1 1 . . . . . . . . . . . . . . . . . . . . Machines | -11 -10 -10 -8 -6 -6 -6 -6 -6 -6 -6 -5 -5 -5 -5 -5 -4 -4 -4 -4 -4 -4 -4 -3 -3 -3 -3 -2 -2 -1 -1 ---------- Run | Yrd Mat Sub Scr Fac Was Fac Low Low Zio Dee Pro Fac Upp Upp Zhi Pro Fac Was Fac Upp Upp War Pro Res Qua Sec Res Tes Acc Com Machines Disabled 65 | . . 2 . 1 . 7 . . 3 1 1 21 . . . 1 7 . 2 . . 1 . 1 4 6 . 5 1 1 Max in Single Turn 4 | . . 2 . 1 . 4 . . 1 1 1 2 . . . 1 1 . 1 . . 1 . 1 1 1 . 1 1 1 Garrison Access 1 | . . . . . . . . . . . . . . . . . . . . . . . . . . 1 . . . . Energy Cycler 1 | . . . . . . . . . . . . . . . . . . . . . . . . . . . . . 1 . Machines Repaired . | . . . . . . . . . . . . . . . . . . . . . . . . . . . . . . . Machines Dismantled 2 | . . . . . . . . . . . . 2 . . . . . . . . . . . . . . . . . . Machines Sabotaged . | . . . . . . . . . . . . . . . . . . . . . . . . . . . . . . . Overloaded Fab Kills . | . . . . . . . . . . . . . . . . . . . . . . . . . . . . . . . Hacking | -11 -10 -10 -8 -6 -6 -6 -6 -6 -6 -6 -5 -5 -5 -5 -5 -4 -4 -4 -4 -4 -4 -4 -3 -3 -3 -3 -2 -2 -1 -1 --------- Run | Yrd Mat Sub Scr Fac Was Fac Low Low Zio Dee Pro Fac Upp Upp Zhi Pro Fac Was Fac Upp Upp War Pro Res Qua Sec Res Tes Acc Com Machines Accessed 138 | . 8 . 5 5 . 12 . . 1 . 1 6 2 . 4 1 11 . 13 . . 2 . 13 13 19 10 7 2 3 Terminals 67 | . 6 . . 1 . 4 . . . . 1 1 . . . 1 5 . 6 . . . . 8 9 15 4 2 1 3 Fabricators 19 | . . . . 2 . 4 . . . . . . . . . . 2 . 3 . . . . 3 . . 3 1 1 . Repair Stations 11 | . . . . 1 . . . . . . . 2 . . . . . . 2 . . . . . 2 1 1 2 . . Recycling Units 15 | . 2 . . 1 . 3 . . . . . 3 . . . . 3 . 1 . . . . . . . 2 . . . Scanalyzers 9 | . . . . . . 1 . . . . . . . . . . 1 . 1 . . . . 1 2 2 . 1 . . Garrison Access 3 | . . . . . . . . . . . . . . . . . . . . . . . . 1 . 1 . 1 . . Total Hacks 439 | . 25 . 32 22 . 31 . . 3 . 1 8 4 . 17 6 25 . 37 . . 7 . 30 42 76 52 13 3 5 Successful 267 | . 15 . 32 14 . 18 . . 3 . 1 5 4 . 17 6 14 . 20 . . 7 . 11 17 48 28 6 . 1 Failed 171 | . 9 . . 8 . 13 . . . . . 3 . . . . 11 . 17 . . . . 19 25 28 24 7 3 4 Catastrophic 36 | . . . . 1 . 3 . . . . . 1 . . . . 3 . 4 . . . . 7 4 7 2 2 1 1 Database Lockouts 1 | . 1 . . . . . . . . . . . . . . . . . . . . . . . . . . . . . Manual 206 | . 13 . . 16 . 18 . . . . . 8 . . . . 20 . 19 . . . . 15 19 49 24 4 1 . Terminals 222 | . 20 . . 8 . 11 . . . . 1 1 . . . 6 15 . 12 . . . . 18 30 68 22 4 1 5 Fabricators 72 | . . . . 8 . 12 . . . . . . . . . . 5 . 15 . . . . 8 . . 20 2 2 . Repair Stations 30 | . . . . 2 . . . . . . . 2 . . . . . . 6 . . . . . 8 3 4 5 . . Recycling Units 30 | . 5 . . 4 . 5 . . . . . 5 . . . . 4 . 1 . . . . . . . 6 . . . Scanalyzers 17 | . . . . . . 3 . . . . . . . . . . 1 . 3 . . . . 2 4 3 . 1 . . Garrison Access 5 | . . . . . . . . . . . . . . . . . . . . . . . . 2 . 2 . 1 . . Terminal Hacks 136 | . 5 . 32 1 . 3 . . 3 . 1 . 4 . 17 6 3 . 4 . . 7 . 3 9 27 7 3 . 1 Record 47 | . . . 31 . . . . . . . . . 3 . 5 6 . . . . . . . . . . 2 . . . Part Schematic 16 | . . . . 1 . 1 . . 3 . . . . . 4 . 1 . 2 . . . . . 1 2 . 1 . . Robot Analysis 5 | . 1 . . . . . . . . . . . . . 4 . . . . . . . . . . . . . . . Prototype ID Bank 11 | . 1 . . . . . . . . . . . . . 4 . . . . . . 6 . . . . . . . . Open Door 9 | . . . 1 . . . . . . . 1 . 1 . . . . . . . . 1 . . . 4 . . . 1 Open DSF 1 | . . . . . . . . . . . . . . . . . . . . . . . . 1 . . . . . . Level Access Points 1 | . . . . . . . . . . . . . . . . . . . . . . . . . . 1 . . . . Branch Access Points 4 | . . . . . . 1 . . . . . . . . . . . . 1 . . . . 1 . . 1 . . . Emergency Access Points 3 | . . . . . . . . . . . . . . . . . . . . . . . . . . 2 . 1 . . Terminal Index 5 | . . . . . . 1 . . . . . . . . . . . . 1 . . . . 1 1 1 . . . . Repair Station Index 1 | . . . . . . . . . . . . . . . . . . . . . . . . . . . 1 . . . Alert Level 3 | . . . . . . . . . . . . . . . . . . . . . . . . . . 3 . . . . Unreport Threat 5 | . . . . . . . . . . . . . . . . . 2 . . . . . . . . 3 . . . . Locate Traps 5 | . 1 . . . . . . . . . . . . . . . . . . . . . . . 1 3 . . . . Maintenance Status 1 | . . . . . . . . . . . . . . . . . . . . . . . . . . 1 . . . . Security Status 1 | . . . . . . . . . . . . . . . . . . . . . . . . . . 1 . . . . Patrol Status 1 | . . . . . . . . . . . . . . . . . . . . . . . . . . 1 . . . . Recall Investigation 1 | . . . . . . . . . . . . . . . . . . . . . . . . . . . 1 . . . Recall Extermination 2 | . . . . . . . . . . . . . . . . . . . . . . . . . 1 1 . . . . Hauler Manifests 5 | . . . . . . . . . . . . . . . . . . . . . . . . . 2 1 1 1 . . Registered Components 2 | . . . . . . . . . . . . . . . . . . . . . . . . . 1 1 . . . . Registered Prototypes 2 | . . . . . . . . . . . . . . . . . . . . . . . . . 1 . 1 . . . Zone Layout 5 | . 2 . . . . . . . . . . . . . . . . . . . . . . . 1 2 . . . . Fabricator Hacks 32 | . . . . 2 . 6 . . . . . . . . . . 2 . 9 . . . . 4 . . 8 1 . . Network Status 6 | . . . . 1 . 1 . . . . . . . . . . 1 . 1 . . . . 1 . . 1 . . . Load Schematic 18 | . . . . 1 . 3 . . . . . . . . . . 1 . 5 . . . . 2 . . 5 1 . . Build 8 | . . . . . . 2 . . . . . . . . . . . . 3 . . . . 1 . . 2 . . . Repair Station Hacks 12 | . . . . 2 . . . . . . . . . . . . . . 1 . . . . . 2 2 4 1 . . Scan Component 8 | . . . . 1 . . . . . . . . . . . . . . 1 . . . . . 2 1 2 1 . . Repair 4 | . . . . 1 . . . . . . . . . . . . . . . . . . . . . 1 2 . . . Recycling Unit Hacks 5 | . 2 . . 2 . . . . . . . . . . . . . . . . . . . . . . 1 . . . Retrieve Matter 1 | . . . . 1 . . . . . . . . . . . . . . . . . . . . . . . . . . Retrieve Components 4 | . 2 . . 1 . . . . . . . . . . . . . . . . . . . . . . 1 . . . Scanalyzer 5 | . . . . . . 2 . . . . . . . . . . 1 . . . . . . . 1 1 . . . . Insert Component 4 | . . . . . . 1 . . . . . . . . . . 1 . . . . . . . 1 1 . . . . Analyze 1 | . . . . . . 1 . . . . . . . . . . . . . . . . . . . . . . . . Garrison Access Hacks 1 | . . . . . . . . . . . . . . . . . . . . . . . . . . 1 . . . . Seal Access 1 | . . . . . . . . . . . . . . . . . . . . . . . . . . 1 . . . . Unauthorized Hacks 76 | . 8 . . 7 . 7 . . . . . 5 . . . . 8 . 6 . . . . 4 5 17 8 1 . . Terminals 42 | . 8 . . 3 . 3 . . . . . . . . . . 2 . . . . . . 2 4 16 3 1 . . Track 3 | . . . . . . . . . . . . . . . . . . . . . . . . . . 3 . . . . Assimilate 5 | . . . . . . . . . . . . . . . . . . . . . . . . 2 . 2 1 . . . Botnet 15 | . 3 . . 1 . 1 . . . . . . . . . . 1 . . . . . . . 4 2 2 1 . . Disrupt 2 | . . . . . . . . . . . . . . . . . . . . . . . . . . 2 . . . . Operators 5 | . . . . 1 . 1 . . . . . . . . . . 1 . . . . . . . . 2 . . . . Skim 12 | . 5 . . 1 . 1 . . . . . . . . . . . . . . . . . . . 5 . . . . Fabricators 17 | . . . . 3 . 2 . . . . . . . . . . 3 . 4 . . . . 2 . . 3 . . . Report 1 | . . . . 1 . . . . . . . . . . . . . . . . . . . . . . . . . . Prioritize 2 | . . . . . . . . . . . . . . . . . . . 1 . . . . . . . 1 . . . Liberate 2 | . . . . . . 1 . . . . . . . . . . 1 . . . . . . . . . . . . . Haulers 4 | . . . . 1 . . . . . . . . . . . . 1 . 1 . . . . 1 . . . . . . Recompile 8 | . . . . 1 . 1 . . . . . . . . . . 1 . 2 . . . . 1 . . 2 . . . Repair Stations 3 | . . . . . . . . . . . . 2 . . . . . . 1 . . . . . . . . . . . Patch 3 | . . . . . . . . . . . . 2 . . . . . . 1 . . . . . . . . . . . Recycling Units 12 | . . . . 1 . 2 . . . . . 3 . . . . 3 . 1 . . . . . . . 2 . . . Mask 1 | . . . . . . . . . . . . . . . . . . . . . . . . . . . 1 . . . Fedlink 7 | . . . . 1 . 2 . . . . . 1 . . . . 2 . . . . . . . . . 1 . . . Scrapoids 3 | . . . . . . . . . . . . 2 . . . . 1 . . . . . . . . . . . . . Scraphulk 1 | . . . . . . . . . . . . . . . . . . . 1 . . . . . . . . . . . Scanalyzers 2 | . . . . . . . . . . . . . . . . . . . . . . . . . 1 1 . . . . Researchers 2 | . . . . . . . . . . . . . . . . . . . . . . . . . 1 1 . . . . Garrison Access . | . . . . . . . . . . . . . . . . . . . . . . . . . . . . . . . Data Cores Recovered 7 | . . . . . . . . . . . . . . . . . 1 . . . . . . . 1 1 1 2 . 1 Used 3 | . . . . . . . . . . . . . . . . . . . . . . . . . . . 1 2 . . Hacking Detections 70 | . 7 . . 4 . 8 . . . . . 1 . . . 1 2 . 7 . . . . 6 8 11 6 6 1 2 Full Trace Events 8 | . . . . . . 2 . . . . . . . . . 1 2 . 2 . . . . . . . 1 . . . Feedback Events 1 | . . . . . . . . . . . . . . . . . . . . . . . . . . . 1 . . . Hackware Fried 1 | . . . . . . . . . . . . . . . . . . . . . . . . . . . 1 . . . Feedback Blocked . | . . . . . . . . . . . . . . . . . . . . . . . . . . . . . . . Robot Schematics Acquired 4 | . . . . . . . . . 4 . . . . . . . . . . . . . . . . . . . . . Robots Built . | . . . . . . . . . . . . . . . . . . . . . . . . . . . . . . . Authchips . | . . . . . . . . . . . . . . . . . . . . . . . . . . . . . . . Time . | . . . . . . . . . . . . . . . . . . . . . . . . . . . . . . . Total Robot Build Rating . | . . . . . . . . . . . . . . . . . . . . . . . . . . . . . . . Part Schematics Acquired 31 | . . . . 1 . 1 . . 17 . . . . . 4 . 1 . 2 . . . . . 1 3 . 1 . . Parts Built 14 | . . . . . . 4 . . . . . . . . . . . . 6 . . . . 1 . . 3 . . . Authchips 8 | . . . . . . 2 . . . . . . . . . . . . 3 . . . . 1 . . 2 . . . Time 626 | . . . . . . 86 . . . . . . . . . . . . 320 . . . . 62 . . 158 . . . Total Part Build Rating 96 | . . . . . . 22 . . . . . . . . . . . . 48 . . . . 7 . . 19 . . . Parts Repaired 4 | . . . . 1 . . . . . . . . . . . . . . . . . . . . . 1 2 . . . Time 147 | . . . . 22 . . . . . . . . . . . . . . . . . . . . . 19 106 . . . Parts Recycled . | . . . . . . . . . . . . . . . . . . . . . . . . . . . . . . . Recycled Matter . | . . . . . . . . . . . . . . . . . . . . . . . . . . . . . . . Retrieved Matter 78 | . . . . 78 . . . . . . . . . . . . . . . . . . . . . . . . . . Retrieved Components 23 | . 11 . . 9 . . . . . . . . . . . . . . . . . . . . . . 3 . . . Parts Scanalyzed 1 | . . . . . . 1 . . . . . . . . . . . . . . . . . . . . . . . . Part Schematics Acquired . | . . . . . . . . . . . . . . . . . . . . . . . . . . . . . . . Parts Damaged . | . . . . . . . . . . . . . . . . . . . . . . . . . . . . . . . Bothacking | -11 -10 -10 -8 -6 -6 -6 -6 -6 -6 -6 -5 -5 -5 -5 -5 -4 -4 -4 -4 -4 -4 -4 -3 -3 -3 -3 -2 -2 -1 -1 ------------ Run | Yrd Mat Sub Scr Fac Was Fac Low Low Zio Dee Pro Fac Upp Upp Zhi Pro Fac Was Fac Upp Upp War Pro Res Qua Sec Res Tes Acc Com Used RIF Installer . | . . . . . . . . . . . . . . . . . . . . . . . . . . . . . . . Robots Hacked 8 | . . . . . . . . . . . . 2 . . 3 1 1 . 1 . . . . . . . . . . . Non-combat 2 | . . . . . . . . . . . . 1 . . . . 1 . . . . . . . . . . . . . Combat 4 | . . . . . . . . . . . . . . . 3 . . . 1 . . . . . . . . . . . Robot Hacks Applied 6 | . . . . . . . . . . . . 1 . . 3 . 1 . 1 . . . . . . . . . . . parse_system 4 | . . . . . . . . . . . . . . . 3 . . . 1 . . . . . . . . . . . find_chute 2 | . . . . . . . . . . . . 1 . . . . 1 . . . . . . . . . . . . . Manual 2 | . . . . . . . . . . . . 1 . . . 1 . . . . . . . . . . . . . . Relay Couplers Released . | . . . . . . . . . . . . . . . . . . . . . . . . . . . . . . . Fabnet Peak Effective % . | . . . . . . . . . . . . . . . . . . . . . . . . . . . . . . . Robots Rewired 6 | . . . . . . . 3 . . . . . . . . . 2 . . . . . . . 1 . . . . . Allies Hacked 3 | . . . . . . 1 . . . . . . . . . . . . 1 . . . . . . . . 1 . . Hacks Repelled 1 | . . . . . . . . . . . . . . . . . 1 . . . . . . . . . . . . . Allies | -11 -10 -10 -8 -6 -6 -6 -6 -6 -6 -6 -5 -5 -5 -5 -5 -4 -4 -4 -4 -4 -4 -4 -3 -3 -3 -3 -2 -2 -1 -1 -------- Run | Yrd Mat Sub Scr Fac Was Fac Low Low Zio Dee Pro Fac Upp Upp Zhi Pro Fac Was Fac Upp Upp War Pro Res Qua Sec Res Tes Acc Com Total Allies 76 | . . . . . 18 2 3 . . . . 11 . . . 1 10 20 1 . . . . 1 1 1 1 . 3 3 Largest Group 19 | . . . . . 18 10 3 3 2 2 . 5 . . . 1 10 19 16 . . . . 1 1 1 1 1 3 3 Highest-Rated Group 702 | . . . . . 638 387 109 109 83 83 . 238 . . . 116 402 702 577 . . . . 45 45 10 45 45 379 376 Highest-Rated Ally 135 | . . . . . 50 46 54 54 54 54 . 85 . . . 116 116 50 123 . . . . 45 45 10 45 45 135 132 Total Orders 75 | . . . 1 . . 5 1 1 . . 2 7 . 2 . . 9 . . . 2 1 . 8 3 8 13 12 . . STAY 5 | . . . . . . . . . . . . . . . . . . . . . . . . . . 1 1 3 . . FOLLOW 4 | . . . . . . . . . . . . . . . . . . . . . . . . . 1 . 1 2 . . EXPLORE 8 | . . . . . . 2 . . . . . . . . . . 3 . . . . . . . . . 3 . . . RETURN 58 | . . . 1 . . 3 1 1 . . 2 7 . 2 . . 6 . . . 2 1 . 8 2 7 8 7 . . Ally Attacks 568 | . . . . . 117 88 . 8 . 3 . 85 . . . . 63 39 145 . . . . . . . . . 19 1 Total Damage 16535 | . . . . . 4711 2132 . 114 . 57 . 3244 . . . . 2047 712 3139 . . . . . . . . . 379 . Kills 78 | . . . . . 10 15 . 1 . . . 19 . . . . 16 1 15 . . . . . . . . . 1 . Allies Corrupted 5 | . . . . . . 2 . . . . . . . . . . 1 . 1 . . . . . . . 1 . . . Allies Melted 4 | . . . . . . 1 . . . . . . . . . . 1 1 . . . 1 . . . . . . . . Intel | -11 -10 -10 -8 -6 -6 -6 -6 -6 -6 -6 -5 -5 -5 -5 -5 -4 -4 -4 -4 -4 -4 -4 -3 -3 -3 -3 -2 -2 -1 -1 ------- Run | Yrd Mat Sub Scr Fac Was Fac Low Low Zio Dee Pro Fac Upp Upp Zhi Pro Fac Was Fac Upp Upp War Pro Res Qua Sec Res Tes Acc Com Active Infowar (turns) 28426 | 120 850 1024 2334 463 1148 1874 1660 1097 2596 787 903 1277 542 357 335 2 667 5 2024 853 867 996 950 1270 519 1533 482 597 189 105 Optics 1198 | . . 103 . . . . . . . . . . . . . . . . . . . . . 1012 83 . . . . . IFF 7882 | . . . 612 359 . 25 1375 1097 2596 787 902 129 . . . . . . . . . . . . . . . . . . Seismic 13116 | 120 850 921 1722 298 1148 1874 960 1097 50 696 890 1274 542 337 335 2 . . . . . . . . . . . . . . Cloaking 8 | . . . . . . . . . . . . . . . . . . 5 3 . . . . . . . . . . . Jamming 11819 | . . . . . . . . . . . . 3 433 357 92 . 667 . 2023 853 867 996 950 1153 519 1533 482 597 189 105 ECM 1 | . . . . . . . . . . . . . . . . . . . 1 . . . . . . . . . . . Robot Analysis Total 5 | . 1 . . . . . . . . . . . . . 4 . . . . . . . . . . . . . . . Derelict Logs Recovered 12 | . . . 4 . . . 2 1 1 . . . . 2 . 1 . . . 1 . . . . . . . . . . Drone Launches 129 | . . . 1 . . 7 3 3 . . 6 9 . 3 . . 10 . . . 6 3 . 19 6 15 20 18 . . Drone Recoveries 126 | . . . 1 . . 5 3 3 . . 6 9 . 3 . . 10 . . . 6 3 . 19 6 15 19 18 . . Exploration | -11 -10 -10 -8 -6 -6 -6 -6 -6 -6 -6 -5 -5 -5 -5 -5 -4 -4 -4 -4 -4 -4 -4 -3 -3 -3 -3 -2 -2 -1 -1 ------------- Run | Yrd Mat Sub Scr Fac Was Fac Low Low Zio Dee Pro Fac Upp Upp Zhi Pro Fac Was Fac Upp Upp War Pro Res Qua Sec Res Tes Acc Com Turns Passed 41840 | 209 1404 1174 4179 1195 1267 2535 1660 1097 2596 5063 1379 2041 542 357 335 569 1595 677 2441 853 867 1187 959 1270 649 1671 482 605 229 753 Spaces Moved 24563 | 88 670 583 2462 399 569 932 653 482 1142 2617 427 794 429 244 233 348 871 382 1231 475 483 663 549 2025 892 1836 583 606 305 590 Core 190 | 85 . . 104 . . . . . . 1 . . . . . . . . . . . . . . . . . . . . Treads 1192 | 3 670 251 268 . . . . . . . . . . . . . . . . . . . . . . . . . . . Legs 71 | . . . 68 . 1 . . . . 2 . . . . . . . . . . . . . . . . . . . . Wheels 16289 | . . 332 2022 399 568 932 653 482 1142 2614 427 794 429 244 233 348 871 382 1231 475 483 663 549 16 . . . . . . Hover 6821 | . . . . . . . . . . . . . . . . . . . . . . . . 2009 892 1836 583 606 305 590 Flight . | . . . . . . . . . . . . . . . . . . . . . . . . . . . . . . . Fastest Speed 23 | 50 160 117 50 170 180 190 205 220 220 130 220 120 110 120 120 110 110 150 150 150 160 140 150 32 29 32 31 27 27 23 Average Speed 134 | 160 194 173 165 184 201 220 219 220 220 164 222 153 119 120 120 114 134 158 154 157 160 158 151 32 36 35 31 39 28 60 Slowest Speed 4500 | 200 240 240 280 190 1350 280 220 220 235 4500 235 240 120 130 120 120 160 160 160 160 160 170 160 150 102 138 104 101 125 102 Overloaded Moves 49 | . . . . . . . . . . . . . . . . . . . . . . . . . . . . 13 . 36 Propulsion Burnouts . | . . . . . . . . . . . . . . . . . . . . . . . . . . . . . . . Robots Hopped 2 | . . . . . . . . . . . . . . . . . . . . . . . . . 2 . . . . . Potential Cave-ins 7 | . . . . . . . . . . . . . . . . . . . . . . . . 2 . . 3 . . 2 Cave-ins Triggered 1 | . . 1 . . . . . . . . . . . . . . . . . . . . . . . . . . . . Teleports 3 | . . . . . . . . . . . . . . . . . . . . . . . . . . 2 . 1 . . Exploration Rate (%) 55 | 5 95 35 93 15 97 34 76 63 86 78 38 22 58 32 61 51 29 96 31 71 62 90 57 55 86 76 20 64 11 25 Regions Visited 30 Branch Regions 19 Pre-discovered Areas 14 | . 1 . 6 . . 1 1 . 1 . . . . . 3 . . . . . . . . . . 1 . . . . Known Exits Taken 14 | . . . 1 . . 1 1 1 . 1 1 1 . . . 1 . . 1 . . . 1 1 . 1 1 . 1 . Unknown Exits Taken 12 | 1 1 1 . . . . . . 1 . . . 1 1 1 . . . . 1 1 1 . . 1 . . 1 . . Scrap Searched 22 | . . . 5 . . . 3 . 1 . . . 3 2 . . . . . 4 3 . 1 . . . . . . . Spaces Dug 402 | . 1 . . 7 4 63 3 2 . 1 . 59 1 3 . 43 25 1 19 1 5 3 5 44 16 41 19 18 7 11 Terrain Destroyed 1212 | . 1 49 . 18 6 86 4 2 . 40 75 523 1 3 . 72 68 1 20 5 9 20 5 49 21 52 26 24 19 13 Melee 249 | . . . . 6 . 17 2 2 . 1 . 28 1 1 . 3 23 . 19 1 3 . 5 43 13 37 18 13 7 6 Projectile 133 | . 1 1 . 4 6 15 2 . . . . 17 . 2 . 8 7 1 1 4 6 6 . 6 8 11 8 11 1 7 AOE 830 | . . 48 . 8 . 54 . . . 39 75 478 . . . 61 38 . . . . 14 . . . 4 . . 11 . Terrain Rammed . | . . . . . . . . . . . . . . . . . . . . . . . . . . . . . . . Walls Destroyed . | . . . . . . . . . . . . . . . . . . . . . . . . . . . . . . . Machines Disabled . | . . . . . . . . . . . . . . . . . . . . . . . . . . . . . . . Actions | -11 -10 -10 -8 -6 -6 -6 -6 -6 -6 -6 -5 -5 -5 -5 -5 -4 -4 -4 -4 -4 -4 -4 -3 -3 -3 -3 -2 -2 -1 -1 --------- Run | Yrd Mat Sub Scr Fac Was Fac Low Low Zio Dee Pro Fac Upp Upp Zhi Pro Fac Was Fac Upp Upp War Pro Res Qua Sec Res Tes Acc Com Total 31940 | 131 739 686 2585 681 688 1281 847 513 1222 3357 828 1426 452 300 271 472 1176 448 1643 565 568 768 669 2518 1167 2756 846 941 432 964 Wait 3629 | . 3 25 31 66 32 68 110 26 58 468 313 133 9 41 . 45 78 13 140 61 66 36 95 247 124 637 159 185 78 282 Move 24530 | 87 669 582 2461 399 568 931 652 481 1141 2616 426 793 428 243 232 347 871 381 1230 474 482 662 548 2024 887 1835 582 605 304 589 Hop 2 | . . . . . . . . . . . . . . . . . . . . . . . . . 2 . . . . . Pick Up 441 | 14 16 14 49 18 15 26 10 . 5 72 4 62 . . 2 4 17 6 19 1 1 7 1 13 15 12 15 8 8 7 Fast Attach 218 | 3 . 3 8 7 8 10 1 . 2 30 3 8 5 . 5 3 19 8 16 1 . 8 2 18 15 16 8 6 . 5 Attach 227 | 5 1 4 . 20 12 23 6 . 2 20 8 44 . . 2 10 5 5 11 1 . 1 2 13 5 12 7 3 2 3 Detach 148 | 1 . 1 2 9 9 19 2 . 2 17 7 29 . . 1 5 5 9 7 . . 3 . 1 3 6 5 3 . 2 Swap 481 | . 9 16 8 12 6 29 6 3 2 6 10 56 3 7 3 6 33 1 34 1 4 8 4 36 26 64 21 41 8 18 Drop 524 | 5 8 7 26 10 26 25 4 . 6 86 9 72 5 . 7 4 35 13 32 2 1 13 3 29 33 22 14 17 1 9 Fire 515 | 16 29 34 . 6 10 39 2 . 3 18 6 133 . 8 14 29 26 9 13 4 5 28 1 7 9 25 13 14 2 12 Melee 1108 | . . . . 131 2 94 21 3 1 23 42 81 2 1 5 19 79 3 131 20 9 2 13 125 35 122 21 58 28 37 Ram 1 | . . . . . . 1 . . . . . . . . . . . . . . . . . . . . . . . . Kick . | . . . . . . . . . . . . . . . . . . . . . . . . . . . . . . . Crush 4 | . 4 . . . . . . . . . . . . . . . . . . . . . . . . . . . . . Escape Stasis 16 | . . . . . . 16 . . . . . . . . . . . . . . . . . . . . . . . . Rewire 52 | . . . . 3 . . 32 . . . . 2 . . . . . . 7 . . . . . 8 . . . . . Trap 5 | . . . . . . . . . . 1 . . . . . . 4 . . . . . . . . . . . . . Miscellaneous 39 | . . . . . . . 1 . . . . 13 . . . . 4 . 3 . . . . 5 5 5 1 1 1 . Route ------- -11/Scrapyard -10/Materials (discovered 6 exits: *Mat x3 / *Min x2 / [*Sub]) -10/Subcaves (discovered 4 exits: *Mat / [*Rec] / *Scr x2) -8/Scraptown (discovered 2 exits: *Fac x2) -6/Factory (discovered 5 exits: Fac x3 / Low x2) -6/Waste -6/Factory (discovered 4 exits: *Low x2 / *Ext x2) -6/Lower Caves -6/Lower Caves (discovered 2 exits: Fac / *Zio) -6/Zion (discovered 2 exits: [*Dee] / *Pro) -6/Deep Caves -5/Proximity Caves -5/Factory (discovered 2 exits: *Upp x2) -5/Upper Caves -5/Upper Caves -5/Zhirov -4/Proximity Caves -4/Factory -4/Waste -4/Factory (discovered 2 exits: *Upp x2) -4/Upper Caves -4/Upper Caves -4/Warlord -3/Proximity Caves -3/Research (discovered 3 exits: *Arm / *Qua x2) -3/Quarantine (discovered 3 exits: *Res / *Sec / [*Frg]) -3/Section 7 -2/Research (discovered 2 exits: *Tes x2) -2/Testing -1/Access (discovered 2 exits: Sur / *Com) -1/Command (discovered 2 exits: *Sur x2) To Epsilon Eridani History --------- Turn | Location | Event 15 | -11/Scrapyard | Discovered new exit (range 16) 210 | -11/Scrapyard | Entered Materials 211 | -10/Materials | Met a group of wandering Federalists 263 | -10/Materials | Central database locked down 302 | -10/Materials | Build established: Mutant 530 | -10/Materials | Discovered new exit (range 15) 697 | -10/Materials | Discovered new exit (range 3) 798 | -10/Materials | Discovered new exit (range 15) 924 | -10/Materials | Discovered new exit (range 7) 1055 | -10/Materials | Identified exit to Materials 1055 | -10/Materials | Identified exit to Mines 1055 | -10/Materials | Learned location of 1 exit from Materials 1132 | -10/Materials | Learned 4 Subcaves zone layouts 1174 | -10/Materials | Learned location of 1 exit from Recycling 1614 | -10/Materials | Entered Subcaves 1615 | -10/Subcaves | Continued accompanying wandering Federalists (5) 1615 | -10/Subcaves | Approached by a straggling Scientist 1615 | -10/Subcaves | Identified exit to Materials 1657 | -10/Subcaves | Discovered new exit (range 9) 1740 | -10/Subcaves | A swath of the cavern ceiling suddenly collapsed 1874 | -10/Subcaves | Wandering Federalist uncovered a shortcut to Scraptown 1880 | -10/Subcaves | A swath of the cavern ceiling suddenly collapsed 1967 | -10/Subcaves | Shifting Twisted Machinery released Battle Cannon 1971 | -10/Subcaves | Shifting Twisted Machinery released Barrage Gun 2135 | -10/Subcaves | Core integrity fell below 50% 2223 | -10/Subcaves | Crushed by falling debris 2223 | -10/Subcaves | System corruption reached 10% 2254 | -10/Subcaves | Lost 5 parts (2p1u2w) 2462 | -10/Subcaves | Scientist uncovered a shortcut to Scraptown 2557 | -10/Subcaves | Build established: Scavenger-Mutant 2788 | -10/Subcaves | Entered Scraptown 2788 | -8/Scraptown | System corruption cleaned by C-Scrubber 3232 | -8/Scraptown | Scanned Subdweller tech in exchange for log data 3237 | -8/Scraptown | Learned location of Zion (-6) 3242 | -8/Scraptown | Learned location of 2 exits from Lower Caves 3244 | -8/Scraptown | Learned Factory stockpile data 3292 | -8/Scraptown | Discovered new exit (range 5) 3454 | -8/Scraptown | Visited Red Mages 3495 | -8/Scraptown | Visited TADAMA 3539 | -8/Scraptown | Visited Assassins FH 3734 | -8/Scraptown | Build established: Mutant 3795 | -8/Scraptown | Visited Shadow of the Wyrm 3820 | -8/Scraptown | Visited Awakened 3878 | -8/Scraptown | Visited The Evicted 3908 | -8/Scraptown | Visited Cave Peace 3951 | -8/Scraptown | Visited UFD Registry 3951 | -8/Scraptown | Registered with UFD as "Protowalker" 3995 | -8/Scraptown | Visited Scrapoid Research Area 4083 | -8/Scraptown | Delivered Scrap Shield to a Scientist 4237 | -8/Scraptown | Visited LU-1G1's Boring Crew 4277 | -8/Scraptown | Visited Curators Association 4351 | -8/Scraptown | Visited Scrap Suit Storage 4405 | -8/Scraptown | Visited Sword Containment 4470 | -8/Scraptown | Visited Cartography Club 4598 | -8/Scraptown | Visited Supply Room 4639 | -8/Scraptown | Visited Derelict Rescue Squad 4648 | -8/Scraptown | Found DRS Beacon 4687 | -8/Scraptown | Visited Modified Component R&D 4929 | -8/Scraptown | Learned location of Lower Caves (-7) 4929 | -8/Scraptown | Learned location of Hub_04(d) (-6) 4929 | -8/Scraptown | Learned location of Quarantine (-3) 4929 | -8/Scraptown | Learned 16 Materials zone layouts 4929 | -8/Scraptown | Learned 16 Factory zone layouts 4929 | -8/Scraptown | Learned 4 Mines zone layouts 4929 | -8/Scraptown | Learned 4 Recycling zone layouts 4929 | -8/Scraptown | Learned 4 Armory zone layouts 4929 | -8/Scraptown | Learned location of 3 exits from Factory 4929 | -8/Scraptown | Learned location of 1 exit from Lower Caves 4929 | -8/Scraptown | Identified exit to Factory 5892 | -8/Scraptown | Found Scrap Suit 5896 | -8/Scraptown | Found Scrap Suit 6115 | -8/Scraptown | Build established: Hauler-Mutant 6860 | -8/Scraptown | Met Optimus 6860 | -8/Scraptown | Accepted into 0bPrime 6967 | -8/Scraptown | Entered Factory 6967 | -6/Factory | Evolved 8 slots: Power x1, Utility x7 6968 | -6/Factory | Identified exit to Lower Caves 6969 | -6/Factory | Identified exit to Factory 7839 | -6/Factory | Loaded intel: 8 recycling unit locations 8075 | -6/Factory | Repaired Hrd. Heavy Armor Plating 8162 | -6/Factory | Sucked down chute 8162 | -6/Factory | Entered Waste 8174 | -6/Waste | Found Prototype Processor 8174 | -6/Waste | Identified Exp. Terrain Scan Processor 8208 | -6/Waste | Spotted C-40 Crusher 8213 | -6/Waste | Spotted C-40 Crusher 8214 | -6/Waste | Spotted C-40 Crusher 8236 | -6/Waste | Warlord forces began an assault 8245 | -6/Waste | Spotted C-40 Crusher 8247 | -6/Waste | Allies destroyed C-40 Crusher 8249 | -6/Waste | Spotted C-40 Crusher 8255 | -6/Waste | Allies destroyed C-40 Crusher 8257 | -6/Waste | Allies destroyed C-40 Crusher 8262 | -6/Waste | Allies destroyed C-40 Crusher 8272 | -6/Waste | Allies destroyed C-40 Crusher 8301 | -6/Waste | Lost 5 allies 8312 | -6/Waste | Spotted C-40 Crusher 8321 | -6/Waste | Allies destroyed C-40 Crusher 8422 | -6/Waste | Discovered new exit (range 16) 8906 | -6/Waste | Found Damper Plating 9287 | -6/Waste | Found Damper Plating 9429 | -6/Waste | Entered Factory 9429 | -6/Factory | Accompanied by 10 allies 9484 | -6/Factory | Fabricated Microactuators (x2) 9660 | -6/Factory | Identified exit to Extension 9767 | -6/Factory | Loaded intel: 8 recycling unit locations 9767 | -6/Factory | Learned location of Protoforge (-3) 9815 | -6/Factory | Garrison activated, responded to threat 9825 | -6/Factory | Lost 3 allies 9894 | -6/Factory | P-60 Hacker assimilated allied YP-IYP(g) 9904 | -6/Factory | Garrison activated, responded to threat 9953 | -6/Factory | Lost 6 allies 10581 | -6/Factory | Cargo convoy interrupted 10587 | -6/Factory | Core integrity fell below 50% 10994 | -6/Factory | Found Launcher Loader 11015 | -6/Factory | Fabricated Imp. Force Field (x2) 11327 | -6/Factory | Found Prototype Processor 11327 | -6/Factory | Identified Exp. Targeting Computer 11964 | -6/Factory | Entered Lower Caves 11965 | -6/Lower Caves | Identified exit to Lower Caves 11966 | -6/Lower Caves | UFD Scientist delivered a prototype 11969 | -6/Lower Caves | Found Prototype Protection 11969 | -6/Lower Caves | Identified Enh. Scrap Shield 12581 | -6/Lower Caves | Activated DRS Beacon 12728 | -6/Lower Caves | Spotted B-75 Beast 12817 | -6/Lower Caves | Learned location of 1 exit from Factory 13005 | -6/Lower Caves | Found Alien Artifact 13006 | -6/Lower Caves | Identified Core Expander 13006 | -6/Lower Caves | Installed Core Expander, added new Power slot 13624 | -6/Lower Caves | Entered another Lower Caves area 13624 | -6/Lower Caves | Accompanied by 3 allies 13625 | -6/Lower Caves | Identified exit to Zion 13721 | -6/Lower Caves | Encountered a Warlord checkpoint 14483 | -6/Lower Caves | Learned Factory terminal intel 14721 | -6/Lower Caves | Entered Zion 14721 | -6/Zion | Accompanied by 2 allies 14722 | -6/Zion | Identified exit to Proximity Caves 14763 | -6/Zion | Given the Hacking Drone Bay 14764 | -6/Zion | Found Prototype Device 14771 | -6/Zion | Identified Hacking Drone Bay 15006 | -6/Zion | System corruption cleaned by Quarantine Array 15231 | -6/Zion | Received a hallucinogenic algorithm 15295 | -6/Zion | Learned Factory terminal intel 15505 | -6/Zion | Found CR-A16's Pointy Stick 15579 | -6/Zion | Turned away by Imprinter 16027 | -6/Zion | Found Prototype Launcher 16027 | -6/Zion | Identified Rocket Array 16039 | -6/Zion | Found Rocket Array 17304 | -6/Zion | Discovered new exit (range 3) 17304 | -6/Zion | Saw the warning signs outside the Deep Caves entrance 17317 | -6/Zion | Entered Deep Caves 17317 | -6/Deep Caves | Accompanied by 2 allies 17318 | -6/Deep Caves | Identified exit to Proximity Caves 17320 | -6/Deep Caves | Met 5H-AD0 17443 | -6/Deep Caves | Z-Facility disabled 17505 | -6/Deep Caves | Attacked by Z-Imprinter 17603 | -6/Deep Caves | Found Prototype Device 17603 | -6/Deep Caves | Identified Zio. Metafield Generator 17615 | -6/Deep Caves | Found Prototype Protection 17615 | -6/Deep Caves | Identified Zio. Weapon Casing 17636 | -6/Deep Caves | Found Zio. Weapon Casing 17824 | -6/Deep Caves | Thanked by 5H-AD0 18021 | -6/Deep Caves | Found Prototype Protection 18159 | -6/Deep Caves | Build established: Scavenger-Mutant 18445 | -6/Deep Caves | Identified Zio. Heavy Carapace 18873 | -6/Deep Caves | Spotted AG-53073 18996 | -6/Deep Caves | Found Surveybot 24 Chip 19373 | -6/Deep Caves | Spotted AG-96594 19408 | -6/Deep Caves | Destroyed AG-96594 19424 | -6/Deep Caves | Found Unknown Device 19839 | -6/Deep Caves | Identified GOLEM Unit 20465 | -6/Deep Caves | Destroyed AG-53073 20471 | -6/Deep Caves | Found GOLEM Unit 20996 | -6/Deep Caves | Found Zio. Weapon Casing 21231 | -6/Deep Caves | Triggered Deep Caves wall 21231 | -6/Deep Caves | Spotted AS-84492 21231 | -6/Deep Caves | Spotted AS-76780 21233 | -6/Deep Caves | Destroyed AS-84492 21235 | -6/Deep Caves | Destroyed AS-76780 21256 | -6/Deep Caves | Destroyed 35 combat bots 21928 | -6/Deep Caves | Build established: Hauler-Mutant 22116 | -6/Deep Caves | Exposed GOLEM chamber 22121 | -6/Deep Caves | Found GOLEM Unit 22128 | -6/Deep Caves | Found GOLEM Unit 22170 | -6/Deep Caves | Found Prototype Energy Cannon 22380 | -6/Deep Caves | Entered Proximity Caves 22387 | -5/Proximity Caves | Attracted the attention of an 0b10 checkpoint 22788 | -5/Proximity Caves | Received a Behemoth hack from an annoying Tinkerer 23492 | -5/Proximity Caves | Snuck into a huge 0b10 base via the rear entrance 23730 | -5/Proximity Caves | Derelicts attacked a huge 0b10 base 23754 | -5/Proximity Caves | Discovered exit to Factory (range 3) 23759 | -5/Proximity Caves | Entered Factory 23759 | -5/Factory | Evolved 2 slots: Utility x2 23760 | -5/Factory | Identified exit to Upper Caves 23762 | -5/Factory | Loaded intel: 26 terminal locations 23782 | -5/Factory | Lost 7 allies 23842 | -5/Factory | Scrapoids reinforcements arrived? 23889 | -5/Factory | Found Scrap Suit 23892 | -5/Factory | Lost 4 allies 24022 | -5/Factory | Found Corrupted Scrap Suit 24605 | -5/Factory | Spotted B-75 Beast 24609 | -5/Factory | Befriended a Behemoth using the annoying Tinkerer's hack 24669 | -5/Factory | Loaded intel: 7 recycling unit locations 24837 | -5/Factory | Cargo convoy interrupted 24848 | -5/Factory | Garrison activated, responded to threat 24929 | -5/Factory | Destroyed 12 combat bots 24991 | -5/Factory | Scrapoid reinforcements arrived 25236 | -5/Factory | Found Scrap Suit 25259 | -5/Factory | First assault squad dispatched 25323 | -5/Factory | Found Prototype Device 25331 | -5/Factory | Lost 4 allies 25343 | -5/Factory | Garrison activated, responded to threat 25383 | -5/Factory | High security lockdown imminent 25405 | -5/Factory | Destroyed 17 combat bots 25463 | -5/Factory | High security lockdown engaged 25590 | -5/Factory | Destroyed 11 combat bots 25742 | -5/Factory | Lost 5 parts (2p2u1w) 25776 | -5/Factory | Found Corrupted Scrap Suit 25787 | -5/Factory | Destroyed 21 combat bots 25800 | -5/Factory | Entered Upper Caves 25889 | -5/Upper Caves | Learned Extension security intel 25889 | -5/Upper Caves | Learned Extension terminal intel 25964 | -5/Upper Caves | Build established: Scavenger-Mutant 26249 | -5/Upper Caves | Discovered new exit (range 9) 26342 | -5/Upper Caves | Entered another Upper Caves area 26360 | -5/Upper Caves | Learned Factory garrison access intel 26564 | -5/Upper Caves | Learned Factory stockpile data 26584 | -5/Upper Caves | Discovered new exit (range 8) 26699 | -5/Upper Caves | Entered Zhirov 26700 | -5/Zhirov | Forged Quantum Companion 26700 | -5/Zhirov | Identified Firepult 26702 | -5/Zhirov | Discovered new exit (range 3) 26724 | -5/Zhirov | Met Zhirov 26745 | -5/Zhirov | Learned location of Testing (-2) 26745 | -5/Zhirov | Learned location of Command (-1) 26763 | -5/Zhirov | Zhirov requested help retrieving the SGEMP Prototype 26791 | -5/Zhirov | Found Alien Artifact 26791 | -5/Zhirov | Identified Integrated Dissipator 26791 | -5/Zhirov | Installed Integrated Dissipator, increased core heat dissipation (+20) 26948 | -5/Zhirov | Found Alien Artifact 27034 | -5/Zhirov | Entered Proximity Caves 27036 | -4/Proximity Caves | Attracted the attention of an 0b10 checkpoint 27039 | -4/Proximity Caves | Core integrity fell below 50% 27049 | -4/Proximity Caves | Attracted the attention of an 0b10 base 27095 | -4/Proximity Caves | Lost 5 parts (1p3u1w) 27098 | -4/Proximity Caves | Destroyed 16 combat bots 27114 | -4/Proximity Caves | System corruption reached 10% 27127 | -4/Proximity Caves | Identified exit to Factory 27127 | -4/Proximity Caves | Learned Armory stockpile data 27127 | -4/Proximity Caves | Learned Factory security intel 27324 | -4/Proximity Caves | Spotted B-86 Titan 27342 | -4/Proximity Caves | Befriended a Behemoth using the annoying Tinkerer's hack 27603 | -4/Proximity Caves | Entered Factory 27603 | -4/Factory | Accompanied by 1 ally 27603 | -4/Factory | Evolved 2 slots: Propulsion x2 27604 | -4/Factory | Identified exit to Research 27607 | -4/Factory | Loaded intel: 26 terminal locations 27608 | -4/Factory | Loaded intel: 3 garrison access locations 28337 | -4/Factory | Identified Transdimensional Reconstructor 28393 | -4/Factory | Loaded intel: 8 recycling unit locations 28533 | -4/Factory | Found Hvy. Reflective Plating 28722 | -4/Factory | Build established: Hacker-Mutant 28890 | -4/Factory | Scrapoids reinforcements arrived? 28905 | -4/Factory | Garrison activated, responded to threat 29007 | -4/Factory | Lost 4 allies 29007 | -4/Factory | Found Scrap Suit 29171 | -4/Factory | Lost 3 allies 29198 | -4/Factory | Sucked down chute 29198 | -4/Factory | Entered Waste 29198 | -4/Waste | Met up with 1 ally sucked down the chute earlier 29211 | -4/Waste | Destroyed 8 combat bots 29216 | -4/Waste | Spotted C-40 Crusher 29235 | -4/Waste | Spotted C-40 Crusher 29242 | -4/Waste | Destroyed C-40 Crusher 29245 | -4/Waste | Spotted C-40 Crusher 29249 | -4/Waste | Destroyed C-40 Crusher 29263 | -4/Waste | Found Damper Plating 29270 | -4/Waste | Spotted C-40 Crusher 29278 | -4/Waste | Destroyed C-40 Crusher 29289 | -4/Waste | Warlord forces began an assault 29290 | -4/Waste | Spotted C-40 Crusher 29300 | -4/Waste | Destroyed C-40 Crusher 29301 | -4/Waste | Spotted C-40 Crusher 29302 | -4/Waste | Destroyed C-40 Crusher 29313 | -4/Waste | Found Damper Plating 29482 | -4/Waste | Build established: Mutant 29818 | -4/Waste | Discovered new exit (range 12) 29875 | -4/Waste | Entered Factory 29875 | -4/Factory | Accompanied by 16 allies 30044 | -4/Factory | Destroyed B-86 Titan 30199 | -4/Factory | Fabricated Cmb. Antigrav System (x2) 30250 | -4/Factory | Lost 4 allies 30392 | -4/Factory | Fabricated Cmb. Antigrav System (x2) 30490 | -4/Factory | Lost 9 allies 30520 | -4/Factory | Fabricated Cmb. Antigrav System (x2) 30990 | -4/Factory | System corruption reached 10% 31118 | -4/Factory | Identified exit to Upper Caves 31200 | -4/Factory | Scraphulk reinforcements arrived 32040 | -4/Factory | Destroyed 8 combat bots 32125 | -4/Factory | First assault squad dispatched 32249 | -4/Factory | Destroyed 7 combat bots 32262 | -4/Factory | Build established: Hacker-Mutant 32316 | -4/Factory | Entered Upper Caves 32503 | -4/Upper Caves | Attracted the attention of an 0b10 base 32583 | -4/Upper Caves | Build established: Mutant 33013 | -4/Upper Caves | Learned 4 Research zone layouts 33052 | -4/Upper Caves | Encountered a Warlord checkpoint 33136 | -4/Upper Caves | Discovered new exit (range 8) 33169 | -4/Upper Caves | Entered another Upper Caves area 33171 | -4/Upper Caves | Attracted the attention of an 0b10 checkpoint 33993 | -4/Upper Caves | Discovered new exit (range 12) 34036 | -4/Upper Caves | Entered Warlord 34090 | -4/Warlord | System corruption cleaned by Quarantine Array 34376 | -4/Warlord | Received a Watcher feed algorithm from an ecstatic Tinkerer 34574 | -4/Warlord | Visited the Vortex Lab 34576 | -4/Warlord | Warlord's base attacked by MAIN.C 34580 | -4/Warlord | Found Prototype Energy Gun 34580 | -4/Warlord | Identified Vortex Rifle 34676 | -4/Warlord | Found Prototype Reactor 34676 | -4/Warlord | Identified Vortex Chain Reactor 34692 | -4/Warlord | Found Prototype Processor 34692 | -4/Warlord | Identified Exp. Armor Integrity Analyzer 34698 | -4/Warlord | Found Prototype Hackware 34817 | -4/Warlord | Rebuked by Warlord 34926 | -4/Warlord | Warlord forces counterattacked 35006 | -4/Warlord | Spotted Striker 35049 | -4/Warlord | Spotted B-86 Titan 35069 | -4/Warlord | Spotted Executioner 35079 | -4/Warlord | Destroyed Executioner 35124 | -4/Warlord | Found Prototype Processor 35124 | -4/Warlord | Identified Exp. Core Analyzer 35126 | -4/Warlord | Lost 14 allies 35130 | -4/Warlord | Spotted Striker 35136 | -4/Warlord | P-70 Sage assimilated allied KT-ITP(g) 35137 | -4/Warlord | Spotted Striker 35140 | -4/Warlord | Spotted Executioner 35147 | -4/Warlord | Destroyed Striker 35166 | -4/Warlord | Destroyed Executioner 35178 | -4/Warlord | Lost 10 allies 35184 | -4/Warlord | Spotted Executioner 35187 | -4/Warlord | Destroyed 8 combat bots 35187 | -4/Warlord | Spotted Striker 35191 | -4/Warlord | Spotted Striker 35194 | -4/Warlord | Destroyed Executioner 35196 | -4/Warlord | Destroyed Striker 35200 | -4/Warlord | Destroyed Striker 35204 | -4/Warlord | Discovered new exit (range 15) 35223 | -4/Warlord | Entered Proximity Caves 35244 | -3/Proximity Caves | Destroyed 17 combat bots 36152 | -3/Proximity Caves | Discovered exit to Research (range 6) 36182 | -3/Proximity Caves | Entered Research 36182 | -3/Research | Evolved 2 slots: Propulsion x2 36183 | -3/Research | Identified exit to Armory 36234 | -3/Research | Identified Ghost Barrier 36287 | -3/Research | Identified exit to DSF 36489 | -3/Research | Fabricated Exp. Melee Analysis Suite (x1) 36510 | -3/Research | Build established: Hacker-Sprinter 36685 | -3/Research | Spotted B-86 Titan 36898 | -3/Research | Spotted B-86 Titan 36992 | -3/Research | Identified exit to Quarantine 37452 | -3/Research | Entered Quarantine 37452 | -3/Quarantine | Accompanied by 1 ally 37462 | -3/Quarantine | Found Alien Artifact 37462 | -3/Quarantine | Identified Phase Redirector 37525 | -3/Quarantine | Found Alien Slashing Weapon 37525 | -3/Quarantine | Identified Sigix Broadsword 37769 | -3/Quarantine | Discovered new exit (range 13) 37814 | -3/Quarantine | Found Alien Artifact 37828 | -3/Quarantine | Identified Core Reset Matrix 37861 | -3/Quarantine | Found Alien Artifact 37863 | -3/Quarantine | Identified Subatomic Replicator 37863 | -3/Quarantine | Forged Prototype Slashing Weapon 38056 | -3/Quarantine | Spotted Fortress 38078 | -3/Quarantine | Discovered new exit (range 6) 38078 | -3/Quarantine | Discovered new exit (range 7) 38101 | -3/Quarantine | Entered Section 7 38158 | -3/Section 7 | Found Prototype Device 38158 | -3/Section 7 | Identified Exp. Thermal Shield 38251 | -3/Section 7 | Identified exit to Research 38354 | -3/Section 7 | Spotted B-86 Titan 38367 | -3/Section 7 | Destroyed B-86 Titan 38484 | -3/Section 7 | Found Integrated Dissipator 38484 | -3/Section 7 | Installed Integrated Dissipator, increased core heat dissipation (+20) 38544 | -3/Section 7 | Spotted S7 Guard 38551 | -3/Section 7 | Destroyed S7 Guard 38740 | -3/Section 7 | Found Alien Artifact 38785 | -3/Section 7 | Repaired Imp. Utility Shielding 38848 | -3/Section 7 | Found Alien Artifact 38848 | -3/Section 7 | Identified Integrated Mediator 38848 | -3/Section 7 | Installed Integrated Mediator, increased core attachment efficiency 38898 | -3/Section 7 | Identified Core Regenerator 39018 | -3/Section 7 | Spotted Alpha 7 39019 | -3/Section 7 | Warped through subspace 39036 | -3/Section 7 | Found Alien Artifact 39039 | -3/Section 7 | Found Transdimensional Reconstructor 39098 | -3/Section 7 | Spotted B-99 Colossus 39112 | -3/Section 7 | Found Alien Artifact 39112 | -3/Section 7 | Identified Integrity Redistributor 39112 | -3/Section 7 | Used Integrity Redistributor, redistributed integrity from core (-120) 39126 | -3/Section 7 | Found Alien Artifact 39126 | -3/Section 7 | Identified LRC Matter Compressor 39126 | -3/Section 7 | Installed LRC Matter Compressor, increased matter storage capacity (+125) 39152 | -3/Section 7 | Found Integrated Dissipator 39152 | -3/Section 7 | Installed Integrated Dissipator, increased core heat dissipation (+20) 39270 | -3/Section 7 | Identified Hpw. Transdimensional Reconstructor 39270 | -3/Section 7 | Warped through subspace 39272 | -3/Section 7 | Found Integrity Redistributor 39351 | -3/Section 7 | Learned 4 Quarantine zone layouts 39465 | -3/Section 7 | Learned location of 1 exit from Armory 39504 | -3/Section 7 | Learned 4 Research zone layouts 39535 | -3/Section 7 | Learned Testing stockpile data 39555 | -3/Section 7 | Learned 4 Research zone layouts 39586 | -3/Section 7 | Learned Testing trap positions 39629 | -3/Section 7 | Learned location of 1 exit from Armory 39662 | -3/Section 7 | Scanned by Researcher 39663 | -3/Section 7 | Intercept squad dispatched 39664 | -3/Section 7 | Spotted Tracker 39664 | -3/Section 7 | Spotted Tracker 39668 | -3/Section 7 | Spotted Combat Programmer 39668 | -3/Section 7 | Spotted Combat Programmer 39669 | -3/Section 7 | Destroyed Tracker 39672 | -3/Section 7 | Destroyed Tracker 39673 | -3/Section 7 | Destroyed Combat Programmer 39674 | -3/Section 7 | Destroyed Combat Programmer 39695 | -3/Section 7 | Destroyed 8 combat bots 39713 | -3/Section 7 | Found Prototype Device 39713 | -3/Section 7 | Identified Exp. Phase Shifter 39772 | -3/Section 7 | Entered Research 39772 | -2/Research | Evolved 2 slots: Propulsion x1, Weapon x1 39825 | -2/Research | Identified exit to Testing 39914 | -2/Research | Repaired Imp. Utility Shielding 39923 | -2/Research | Fabricated Femtoactuators (x1) 39983 | -2/Research | Repaired Cmb. Antigrav System 40000 | -2/Research | Loaded intel: 5 recycling unit locations 40188 | -2/Research | Fabricated Weapon Mount (x2) 40190 | -2/Research | Imp. Hacking Suite fried by hacking feedback 40254 | -2/Research | Entered Testing 40254 | -2/Testing | Accompanied by 1 ally 40255 | -2/Testing | Loaded intel: 12 trap records 40278 | -2/Testing | Found Prototype Energy Gun 40278 | -2/Testing | Identified Hyp. EM Gauss Rifle 40441 | -2/Testing | Found Adv. Force Booster 40451 | -2/Testing | Found Exp. Transmission Jammer 40517 | -2/Testing | Build established: Machinist-Sprinter 40571 | -2/Testing | Spotted Striker 40572 | -2/Testing | Spotted Striker 40584 | -2/Testing | Destroyed Striker 40588 | -2/Testing | Destroyed Striker 40609 | -2/Testing | Destroyed 8 combat bots 40612 | -2/Testing | Spotted Alpha 7 40614 | -2/Testing | Warped through subspace 40618 | -2/Testing | Stole the SGEMP Prototype 40638 | -2/Testing | Spotted PG-Q5DXN7V14F 40646 | -2/Testing | Discovered new exit (range 16) 40660 | -2/Testing | Found Prototype Device 40660 | -2/Testing | Identified AEGIS Remote Shield 40762 | -2/Testing | Found Prototype Energy Cannon 40762 | -2/Testing | Identified Cld. Nova Cannon 40859 | -2/Testing | Entered Access 40859 | -1/Access | Evolved 2 slots: Utility x2 40860 | -1/Access | Delivered the SGEMP Prototype to Zhirov 40860 | -1/Access | Zhirov transferred Access data 40861 | -1/Access | Loaded intel: 117 machine locations 40861 | -1/Access | Loaded intel: 89 trap records 40861 | -1/Access | Identified exit to Surface 40861 | -1/Access | Discovered exit to Surface (range 222) 40861 | -1/Access | Identified exit to Command 40861 | -1/Access | Discovered exit to Command (range 128) 40999 | -1/Access | Zhirov warped through subspace 41055 | -1/Access | Energy Cycler disabled 41088 | -1/Access | Entered Command 41170 | -1/Command | Spotted Combat Programmer 41192 | -1/Command | Spotted M Guard 41192 | -1/Command | Spotted M Guard 41193 | -1/Command | Spotted Combat Programmer 41206 | -1/Command | Used Integrity Redistributor, redistributed integrity from core (-96) 41209 | -1/Command | Destroyed Combat Programmer 41219 | -1/Command | Destroyed Combat Programmer 41271 | -1/Command | Met MAIN.C 41274 | -1/Command | 0b10 Conduit disabled 41289 | -1/Command | Destroyed MAIN.C Shell 41290 | -1/Command | MAIN.C activated Command garrisons 41295 | -1/Command | Zhirov used SGEMP to disable MAIN.C 41316 | -1/Command | Discovered exit to Surface (range 48) 41316 | -1/Command | Discovered exit to Surface (range 98) 41316 | -1/Command | Extracted map data and part IDs from MAIN.C's data core 41318 | -1/Command | Found Zero-point Reactor 41586 | -1/Command | Build established: Machinist-Gladiator 41728 | -1/Command | Found Exp. System Purifier 41841 | *** | Escaped! Last Messages --------------- Superquantum Companion: "After our adventure to do whatever you want, let's go on a journey to find out where the heck I came from." 41654_ System corrupted: Matter fused (-9). 41677_ System corrupted: Heat flow error (+275). 41711_ Cld. Nova Cannon displaced. Superquantum Companion materializes via a weapon slot. Superquantum Companion: "It's go time!" 41711_ Acquired Cld. Nova Cannon. 41713_ Sealed Heavy Doors breached. 41715_ System corrupted: Matter fused (-8). 41719_ Acquired Superquantum Companion. 41728_ Acquired Exp. System Purifier. 41730_ Exp. System Purifier purges 1% system corruption (0%). 41786_ Dropped Cld. Linear Gravjet. 41786_ Acquired Shield Leg. 41788_ Dropped Shield Leg. 41789_ Acquired Cld. Linear Gravjet. 41839_ Discarded Exp. System Purifier. [Achievement: I Was Wrong!] [Achievement: Winner's Signature] Map ----- +----------------------------------------------------+ | ?# #???????# + ""#????????????????? | | ?# #???????# ## ] T#????????????????? | | ?# #???##### ## ! ""#????????????????? | | ?# #???# ## ## """" ""#????????????????? | | ?# ##### ## ## """" ""#????????????????? | | ## ## """" #????????????????? | | + """" #????????????????? | | ####### ## #????????????????? | | # ! ]# ]]] ## ##########???????? | | = + # ]]] ########+##### ####????? | | ! # # ]]] ##### #??# ""#????? | | ! # # #??# """#????? | | #=! # #??# "" R"#????? | | #=! # ##### #??# """" """#????? | | #! # #########???## ##??# """" ""#????? | | ] # #####+############## #???# "" ####????? | | ###???# ! # #???# #####???? | | ####### # #???# ## #???? | | ""# + # #########/##### ##### | | ""# ### ! + | | Y"# #?# # | | ! ""# #?# ########## #### | | ! ""# #?################????????# #### | | ! ###+##########?????######?????# "" #]][ | | # ! #?????# #?????# """" #]]] | | # = !! #?????# @ #?????# """" #!!! | | + ! #?????# #?????# "" # !! | | ## #?????### #?????# #### | | ## ## #?????### #?????# #??? | | ?# ############+######## # #?????# #??? | | ?# #????# # ####### ] !]]#??? | | ?# #????# # !]]#??? | | ?# #????# = # !]!#?## | | ## #????# # #?#? | | #????# ] # k #?#? | | #????# * # ######## #?#? | | #????# + #??????#!!= #?#? | | #????# """ """ # ########!== #?#? | | #????# """T""" # # #!== #?#? | | #?##################### # # #?#? | | ### !#???######???# # # #?#? | | ! ##### ##### +^ # #?#? | | "" # # #?#? | | "T # # #?#? | | ##### ###### ######## #?#? | | ##+### #?############# #??????# "" #?#? | | ###### #?# # #??????# """#?#? | | #????# #?# # #??????# T"#?#? | | ""#????# #?# # ######## """#?#? | | ""#????# #?# # "" #### | +----------------------------------------------------+ Best States ------------- Heat Dissipation 154 Coolant Potential 200 Energy Generation 83 Energy Capacity 2540 Matter Stores 500 Matter Capacity 500 Sight Range 22 Terrain Scan Density 10 Jamming Range 22 Cloak Strength 4 Additional Mass Support 20 Base Temperature (-) 150 Corruption Containment 8 Corruption Block 8 Armor Coverage 2800 Resistance: KI 15 Resistance: TH 25 Resistance: EX 15 Resistance: EM 90 Resistance: I 15 Resistance: S 15 Resistance: P 15 Utility Shielding 66 Weapon Shielding 100 Point Defense Rating 240 Melee Speed Boost 50 Phase Shifting 20 Evasion (%) 91 Targeting Accuracy 28 Melee Accuracy 16 Core Analysis 8 Recoil Reduction 2 Particle Charging 25 Force Boost 40 Offensive Hacking 35 Defensive Hacking 32 Authchip Count 1 Item Schematics ----------------- Microactuators | -6/Factory | Hacked Imp. Force Field | -6/Factory | Hacked Riot Gun | -6/Zion | Free Slug Cannon | -6/Zion | Free Hvy. Beamcaster | -6/Zion | Free Focal Shield | -6/Zion | Archive KE Penetrator | -6/Zion | Archive Angular Momentum Engine | -6/Zion | Archive Imp. Corruption Screen | -6/Zion | Archive Hvy. Plasma Cannon | -6/Zion | Archive Imp. Launcher Guidance Computer | -6/Zion | Archive Lgt. Angular Momentum Engine | -6/Zion | Archive Adv. Thermal Generator | -6/Zion | Archive Myomer Leg | -6/Zion | Archive Magnetic Acceleration Cannon | -6/Zion | Archive Adv. Cooling System | -6/Zion | Archive Adv. Heat Sink | -6/Zion | Archive Field Propulsion Drive | -6/Zion | Archive Arm. Medium Treads | -6/Zion | Archive Assault Drone Bay | -5/Zhirov | Free Exp. Heat Sink | -5/Zhirov | Free Exp. Optical Array | -5/Zhirov | Free Imp. Arc Thrower | -5/Zhirov | Free Cmb. Antigrav System | -4/Factory | Hacked Exp. Melee Analysis Suite | -4/Factory | Hacked Hcp. Storage Unit | -4/Factory | Hacked Weapon Mount | -3/Quarantine | Hacked Femtoactuators | -3/Section 7 | Hacked Adv. Quantum Shading Machine | -3/Section 7 | Hacked Kinetic Spear | -3/Section 7 | Archive Exp. Utility Shielding | -2/Testing | Hacked Robot Schematics ------------------ K-01 Serf | -6/Zion | Archive R-10 Processor | -6/Zion | Archive E-15 Imp | -6/Zion | Archive Y-72 Warden | -6/Zion | Archive Fabricated ------------ Microactuators | x2 | -6/Factory | Authchip Imp. Force Field | x2 | -6/Factory | Authchip Cmb. Antigrav System | x2 | -4/Factory | Authchip Cmb. Antigrav System | x2 | -4/Factory | Authchip Cmb. Antigrav System | x2 | -4/Factory | Authchip Exp. Melee Analysis Suite | x1 | -3/Research | Authchip Femtoactuators | x1 | -2/Research | Authchip Weapon Mount | x2 | -2/Research | Authchip Repaired ---------- Hrd. Heavy Armor Plating | 1% | -6/Factory Imp. Utility Shielding | 30% | -3/Section 7 Imp. Utility Shielding | 25% | -2/Research Cmb. Antigrav System | 71% | -2/Research Alien Tech Used ----------------- Core Expander Integrated Dissipator Phase Redirector Sigix Broadsword Subatomic Replicator Integrated Mediator Transdimensional Reconstructor Integrity Redistributor LRC Matter Compressor High-powered Transdimensional Reconstructor Achievements -------------- I Was Wrong! Signature Confirmed Sorry Old Pal Winner's Signature Challenges ------------ None Game ------ Seed ThermicStrikeSuite Manual? 0 Play Time 24:05:05 Cumulative 439.1 hours Start 2025.07.02 @ 20:28:17 End 2025.08.15 @ 20:10:02 Sessions 25 Manual Loads 0 Difficulty Rogue Special Mode None Game No. 52 Rogue 49 Adventurer 3 Explorer 0 Win Type 0 Total 16 Types 9/0/3/1/0/0/1/1/1/0 Lore% 75 Gallery% 81 Achievement% 89 Wizard Run 0 Options --------- Layout 0 ASCII 0 Keyboard 0 Movement Numpad Keybinds 0 Fullscreen 1 Font 18/SmallcapsGlow Map View 76x50 Zoom Use 0% Tactical HUD 1 Map Filters NONE Filters NONE Steam 1 RUN: 4e0a1b91-188a-4ee0-9fd1-820a6e243089